Effective Date,Department,Supplier Name,Payment Date,Amount **,Purpose of Spend,Merchant Category,Card Transaction
Statement 19/07/2016 - 17/08/2016,Adults and Communities,ADVANCE SERVICES&S,01/08/2016,113.97,IT Equipment - General,Computer and Data Processing Services,GPC
Statement 19/07/2016 - 17/08/2016,Adults and Communities,ADVANCE SERVICES&S,16/08/2016,113.97,IT Equipment - General,Computer and Data Processing Services,GPC
Statement 19/07/2016 - 17/08/2016,Adults and Communities,ALDI,20/07/2016,6.79,Materials - General,"Grocery Stores, Supermarkets",GPC
Statement 19/07/2016 - 17/08/2016,Adults and Communities,Amazon Svcs Europe SAR,03/08/2016,340.42,Printing - General,Book Stores,GPC
Statement 19/07/2016 - 17/08/2016,Adults and Communities,Amazon UK Marketplace,03/08/2016,12.97,Books - General,Book Stores,GPC
Statement 19/07/2016 - 17/08/2016,Adults and Communities,Amazon UK Marketplace,08/08/2016,14.79,Books - General,Book Stores,GPC
Statement 19/07/2016 - 17/08/2016,Adults and Communities,Amazon UK Marketplace,12/08/2016,5.18,Books - General,Miscellaneous and Specialty Retail Stores,GPC
Statement 19/07/2016 - 17/08/2016,Adults and Communities,Amazon UK Marketplace,15/08/2016,27.80,Books - General,Book Stores,GPC
Statement 19/07/2016 - 17/08/2016,Adults and Communities,Amazon UK Marketplace,20/07/2016,22.49,General Equipment - General,Miscellaneous and Specialty Retail Stores,GPC
Statement 19/07/2016 - 17/08/2016,Adults and Communities,Amazon UK Marketplace,22/07/2016,3.99,General Equipment - General,Book Stores,GPC
Statement 19/07/2016 - 17/08/2016,Adults and Communities,Amazon UK Marketplace,22/07/2016,42.99,General Equipment - General,Book Stores,GPC
Statement 19/07/2016 - 17/08/2016,Adults and Communities,Amazon UK Marketplace,22/07/2016,6.65,General Equipment - General,Miscellaneous and Specialty Retail Stores,GPC
Statement 19/07/2016 - 17/08/2016,Adults and Communities,Amazon UK Marketplace,25/07/2016,7.69,General Equipment - General,Miscellaneous and Specialty Retail Stores,GPC
Statement 19/07/2016 - 17/08/2016,Adults and Communities,Amazon UK Marketplace,26/07/2016,6.65,General Equipment - General,Miscellaneous and Specialty Retail Stores,GPC
Statement 19/07/2016 - 17/08/2016,Adults and Communities,Amazon UK Marketplace,26/07/2016,26.99,General Equipment - General,Miscellaneous and Specialty Retail Stores,GPC
Statement 19/07/2016 - 17/08/2016,Adults and Communities,Amazon UK Marketplace,27/07/2016,122.00,General Equipment - General,Miscellaneous and Specialty Retail Stores,GPC
Statement 19/07/2016 - 17/08/2016,Adults and Communities,Amazon UK Marketplace,03/08/2016,22.17,General Equipment - General,Miscellaneous and Specialty Retail Stores,GPC
Statement 19/07/2016 - 17/08/2016,Adults and Communities,Amazon UK Marketplace,03/08/2016,11.03,General Equipment - General,Miscellaneous and Specialty Retail Stores,GPC
Statement 19/07/2016 - 17/08/2016,Adults and Communities,Amazon UK Marketplace,04/08/2016,1.95,General Equipment - General,Miscellaneous and Specialty Retail Stores,GPC
Statement 19/07/2016 - 17/08/2016,Adults and Communities,Amazon UK Marketplace,04/08/2016,16.93,General Equipment - General,Miscellaneous and Specialty Retail Stores,GPC
Statement 19/07/2016 - 17/08/2016,Adults and Communities,Amazon UK Marketplace,04/08/2016,-26.99,General Equipment - General,Miscellaneous and Specialty Retail Stores,GPC
Statement 19/07/2016 - 17/08/2016,Adults and Communities,Amazon UK Marketplace,07/08/2016,2.38,General Equipment - General,Miscellaneous and Specialty Retail Stores,GPC
Statement 19/07/2016 - 17/08/2016,Adults and Communities,Amazon UK Marketplace,10/08/2016,8.30,General Equipment - General,Miscellaneous and Specialty Retail Stores,GPC
Statement 19/07/2016 - 17/08/2016,Adults and Communities,Amazon UK Marketplace,10/08/2016,13.09,General Equipment - General,Miscellaneous and Specialty Retail Stores,GPC
Statement 19/07/2016 - 17/08/2016,Adults and Communities,Amazon UK Marketplace,05/08/2016,5.44,IT Equipment - General,Miscellaneous and Specialty Retail Stores,GPC
Statement 19/07/2016 - 17/08/2016,Adults and Communities,Amazon UK Marketplace,08/08/2016,3.70,IT Equipment - General,Miscellaneous and Specialty Retail Stores,GPC
Statement 19/07/2016 - 17/08/2016,Adults and Communities,Amazon UK Marketplace,03/08/2016,23.00,Materials - General,Miscellaneous and Specialty Retail Stores,GPC
Statement 19/07/2016 - 17/08/2016,Adults and Communities,Amazon UK Marketplace,03/08/2016,4.99,Materials - General,Miscellaneous and Specialty Retail Stores,GPC
Statement 19/07/2016 - 17/08/2016,Adults and Communities,Amazon UK Marketplace,04/08/2016,5.44,Materials - General,Miscellaneous and Specialty Retail Stores,GPC
Statement 19/07/2016 - 17/08/2016,Adults and Communities,Amazon UK Marketplace,10/08/2016,16.19,Materials - General,Miscellaneous and Specialty Retail Stores,GPC
Statement 19/07/2016 - 17/08/2016,Adults and Communities,Amazon UK Marketplace,16/08/2016,3.20,Materials - General,Miscellaneous and Specialty Retail Stores,GPC
Statement 19/07/2016 - 17/08/2016,Adults and Communities,Amazon UK Marketplace,27/07/2016,72.84,Operational Equipment - General,Miscellaneous and Specialty Retail Stores,GPC
Statement 19/07/2016 - 17/08/2016,Adults and Communities,Amazon UK Marketplace,21/07/2016,1.22,Other Expenditure - General,Book Stores,GPC
Statement 19/07/2016 - 17/08/2016,Adults and Communities,Amazon UK Marketplace,21/07/2016,13.97,Other Expenditure - General,Miscellaneous and Specialty Retail Stores,GPC
Statement 19/07/2016 - 17/08/2016,Adults and Communities,Amazon UK Marketplace,11/08/2016,34.97,Other Services - General,Book Stores,GPC
Statement 19/07/2016 - 17/08/2016,Adults and Communities,Amazon UK Marketplace,11/08/2016,40.15,Other Services - General,Book Stores,GPC
Statement 19/07/2016 - 17/08/2016,Adults and Communities,Amazon UK Marketplace,22/07/2016,3.15,Postal Services - General,Miscellaneous and Specialty Retail Stores,GPC
Statement 19/07/2016 - 17/08/2016,Adults and Communities,Amazon UK Marketplace,25/07/2016,3.32,Postal Services - General,Miscellaneous and Specialty Retail Stores,GPC
Statement 19/07/2016 - 17/08/2016,Adults and Communities,Amazon UK Marketplace,26/07/2016,3.15,Postal Services - General,Miscellaneous and Specialty Retail Stores,GPC
Statement 19/07/2016 - 17/08/2016,Adults and Communities,Amazon UK Marketplace,27/07/2016,36.63,Stationery - General,Miscellaneous and Specialty Retail Stores,GPC
Statement 19/07/2016 - 17/08/2016,Adults and Communities,Amazon UK Marketplace,28/07/2016,3.91,Stationery - General,Miscellaneous and Specialty Retail Stores,GPC
Statement 19/07/2016 - 17/08/2016,Adults and Communities,Amazon UK Marketplace,28/07/2016,11.56,Stationery - General,Miscellaneous and Specialty Retail Stores,GPC
Statement 19/07/2016 - 17/08/2016,Adults and Communities,Amazon UK Marketplace,20/07/2016,7.99,Tuition Fees - Tuition Fees-Class Programme,Book Stores,GPC
Statement 19/07/2016 - 17/08/2016,Adults and Communities,Amazon UK Retail,21/07/2016,28.12,General Equipment - General,Direct Marketers - Other,GPC
Statement 19/07/2016 - 17/08/2016,Adults and Communities,Amazon UK Retail,28/07/2016,36.48,General Equipment - General,Direct Marketers - Other,GPC
Statement 19/07/2016 - 17/08/2016,Adults and Communities,Amazon UK Retail,19/07/2016,113.82,Other Expenditure - General,Direct Marketers - Other,GPC
Statement 19/07/2016 - 17/08/2016,Adults and Communities,Amazon UK Retail,20/07/2016,11.96,Other Expenditure - General,Direct Marketers - Other,GPC
Statement 19/07/2016 - 17/08/2016,Adults and Communities,Amazon UK Retail,20/07/2016,7.96,Other Expenditure - General,Direct Marketers - Other,GPC
Statement 19/07/2016 - 17/08/2016,Adults and Communities,Amazon UK Retail,21/07/2016,5.99,Other Expenditure - General,Direct Marketers - Other,GPC
Statement 19/07/2016 - 17/08/2016,Adults and Communities,Amazon UK Retail,22/07/2016,-11.96,Other Expenditure - General,Direct Marketers - Other,GPC
Statement 19/07/2016 - 17/08/2016,Adults and Communities,Amazon UK Retail,08/08/2016,5.99,Other Expenditure - General,Direct Marketers - Other,GPC
Statement 19/07/2016 - 17/08/2016,Adults and Communities,Amazon UK Retail,08/08/2016,24.97,Other Expenditure - General,Direct Marketers - Other,GPC
Statement 19/07/2016 - 17/08/2016,Adults and Communities,Amazon UK Retail,08/08/2016,4.95,Other Expenditure - General,Direct Marketers - Other,GPC
Statement 19/07/2016 - 17/08/2016,Adults and Communities,Amazon UK Retail,08/08/2016,19.38,Other Expenditure - General,Direct Marketers - Other,GPC
Statement 19/07/2016 - 17/08/2016,Adults and Communities,Amazon UK Retail,11/08/2016,-24.97,Other Expenditure - General,Direct Marketers - Other,GPC
Statement 19/07/2016 - 17/08/2016,Adults and Communities,Amazon UK Retail,11/08/2016,-19.38,Other Expenditure - General,Direct Marketers - Other,GPC
Statement 19/07/2016 - 17/08/2016,Adults and Communities,Amazon UK Retail,11/08/2016,-4.95,Other Expenditure - General,Direct Marketers - Other,GPC
Statement 19/07/2016 - 17/08/2016,Adults and Communities,Amazon UK Retail,27/07/2016,9.78,Stationery - General,Direct Marketers - Other,GPC
Statement 19/07/2016 - 17/08/2016,Adults and Communities,AMAZON UK RETAIL AMAZON.C,21/07/2016,7.49,General Equipment - General,Miscellaneous and Specialty Retail Stores,GPC
Statement 19/07/2016 - 17/08/2016,Adults and Communities,AMAZON UK RETAIL AMAZON.C,20/07/2016,11.96,Materials - General,Miscellaneous and Specialty Retail Stores,GPC
Statement 19/07/2016 - 17/08/2016,Adults and Communities,AMAZON UK RETAIL AMAZON.C,21/07/2016,32.17,Materials - General,Miscellaneous and Specialty Retail Stores,GPC
Statement 19/07/2016 - 17/08/2016,Adults and Communities,AMAZON UK RETAIL AMAZON.C,22/07/2016,-11.96,Materials - General,Miscellaneous and Specialty Retail Stores,GPC
Statement 19/07/2016 - 17/08/2016,Adults and Communities,AMAZON UK RETAIL AMAZON.C,08/08/2016,38.95,Materials - General,Miscellaneous and Specialty Retail Stores,GPC
Statement 19/07/2016 - 17/08/2016,Adults and Communities,AMAZON UK RETAIL AMAZON.C,11/08/2016,-38.95,Materials - General,Miscellaneous and Specialty Retail Stores,GPC
Statement 19/07/2016 - 17/08/2016,Adults and Communities,AMAZON UK RETAIL AMAZON.C,10/08/2016,8.28,Other Expenditure - General,Miscellaneous and Specialty Retail Stores,GPC
Statement 19/07/2016 - 17/08/2016,Adults and Communities,AMAZON UK RETAIL AMAZON.C,21/07/2016,3.96,Postal Services - General,Miscellaneous and Specialty Retail Stores,GPC
Statement 19/07/2016 - 17/08/2016,Adults and Communities,AMAZON UK RETAIL AMAZON.C,20/07/2016,62.80,Stationery - General,Miscellaneous and Specialty Retail Stores,GPC
Statement 19/07/2016 - 17/08/2016,Adults and Communities,AMAZON UK RETAIL AMAZON.C,11/08/2016,36.69,Stationery - General,Miscellaneous and Specialty Retail Stores,GPC
Statement 19/07/2016 - 17/08/2016,Adults and Communities,ARGOS LTD,10/08/2016,79.98,Aids & Adaptations - Minor Adaptations,Discount Stores,GPC
Statement 19/07/2016 - 17/08/2016,Adults and Communities,ARGOS LTD,19/07/2016,89.99,Materials - General,Discount Stores,GPC
Statement 19/07/2016 - 17/08/2016,Adults and Communities,ARGOS LTD,22/07/2016,4.49,Materials - General,Discount Stores,GPC
Statement 19/07/2016 - 17/08/2016,Adults and Communities,ARGOS LTD,03/08/2016,89.99,Materials - General,Discount Stores,GPC
Statement 19/07/2016 - 17/08/2016,Adults and Communities,ARGOS LTD,12/08/2016,49.99,Materials - General,Discount Stores,GPC
Statement 19/07/2016 - 17/08/2016,Adults and Communities,ARGOS LTD,12/08/2016,49.99,Materials - General,Discount Stores,GPC
Statement 19/07/2016 - 17/08/2016,Adults and Communities,ARGOS RETAIL GROUP,19/07/2016,59.94,General Equipment - General,Discount Stores,GPC
Statement 19/07/2016 - 17/08/2016,Adults and Communities,ARGOS RETAIL GROUP,21/07/2016,155.25,General Equipment - General,Discount Stores,GPC
Statement 19/07/2016 - 17/08/2016,Adults and Communities,ARGOS RETAIL GROUP,21/07/2016,5.09,General Equipment - General,Discount Stores,GPC
Statement 19/07/2016 - 17/08/2016,Adults and Communities,ARGOS RETAIL GROUP,27/07/2016,19.90,General Equipment - General,Discount Stores,GPC
Statement 19/07/2016 - 17/08/2016,Adults and Communities,ASDA STORES,16/08/2016,27.83,Materials - General,"Grocery Stores, Supermarkets",GPC
Statement 19/07/2016 - 17/08/2016,Adults and Communities,ASDA STORES 4477,27/07/2016,2.40,Other Equipment & Materials - General,"Grocery Stores, Supermarkets",GPC
Statement 19/07/2016 - 17/08/2016,Adults and Communities,ASDA SUPERSTORE,19/07/2016,18.82,Provisions - General,"Grocery Stores, Supermarkets",GPC
Statement 19/07/2016 - 17/08/2016,Adults and Communities,ASDA SUPERSTORE,13/08/2016,15.01,Provisions - General,"Grocery Stores, Supermarkets",GPC
Statement 19/07/2016 - 17/08/2016,Adults and Communities,ASDA SUPERSTORE 04030,20/07/2016,78.23,Consultants & Specialists - General,"Grocery Stores, Supermarkets",GPC
Statement 19/07/2016 - 17/08/2016,Adults and Communities,B & M RETAIL,20/07/2016,9.04,Materials - General,Discount Stores,GPC
Statement 19/07/2016 - 17/08/2016,Adults and Communities,B & Q 1012,08/08/2016,4.10,Aids & Adaptations - Minor Adaptations,"Building Materials, Lumber Stores",GPC
Statement 19/07/2016 - 17/08/2016,Adults and Communities,B & Q 1043,11/08/2016,32.93,Aids & Adaptations - Minor Adaptations,"Building Materials, Lumber Stores",GPC
Statement 19/07/2016 - 17/08/2016,Adults and Communities,B & Q 1299,12/07/2016,10.00,Aids & Adaptations - Minor Adaptations,"Building Materials, Lumber Stores",GPC
Statement 19/07/2016 - 17/08/2016,Adults and Communities,B & Q 1299,10/08/2016,17.77,Aids & Adaptations - Minor Adaptations,"Building Materials, Lumber Stores",GPC
Statement 19/07/2016 - 17/08/2016,Adults and Communities,B & Q 1299,11/08/2016,4.00,Aids & Adaptations - Minor Adaptations,"Building Materials, Lumber Stores",GPC
Statement 19/07/2016 - 17/08/2016,Adults and Communities,B & Q 1299,22/07/2016,65.00,General Equipment - General,"Building Materials, Lumber Stores",GPC
Statement 19/07/2016 - 17/08/2016,Adults and Communities,B&M Retail,09/08/2016,8.13,Other Services - General,Discount Stores,GPC
Statement 19/07/2016 - 17/08/2016,Adults and Communities,B&M RETAIL LTD,22/07/2016,11.97,Materials - General,Discount Stores,GPC
Statement 19/07/2016 - 17/08/2016,Adults and Communities,B&M RETAIL LTD,26/07/2016,126.04,Materials - General,Discount Stores,GPC
Statement 19/07/2016 - 17/08/2016,Adults and Communities,B&M RETAIL LTD,08/08/2016,69.99,Materials - General,Discount Stores,GPC
Statement 19/07/2016 - 17/08/2016,Adults and Communities,B&M RETAIL LTD,09/08/2016,20.52,Materials - General,Discount Stores,GPC
Statement 19/07/2016 - 17/08/2016,Adults and Communities,B&M RETAIL LTD,10/08/2016,9.98,Materials - General,Discount Stores,GPC
Statement 19/07/2016 - 17/08/2016,Adults and Communities,BC.BASECAMP 2997305,01/08/2016,15.20,IT Equipment - Licences,Membership Organizations-Not Elsewhere Classified,GPC
Statement 19/07/2016 - 17/08/2016,Adults and Communities,BOC TEL ORDER,15/08/2016,4.81,Operational Equipment - General,Chemicals and Allied Products Not Elsewhere Classi,GPC
Statement 19/07/2016 - 17/08/2016,Adults and Communities,BOOTS 0020,28/07/2016,27.02,Other Equipment & Materials - General,"Drug Stores, Pharmacies",GPC
Statement 19/07/2016 - 17/08/2016,Adults and Communities,CARD FACTORY,22/07/2016,3.98,Materials - General,"Gift, Card, Novelty, and Souvenir Shops",GPC
Statement 19/07/2016 - 17/08/2016,Adults and Communities,CATERING ACADEMY,21/07/2016,92.00,Consultants & Specialists - General,"Eating Places, Restaurants",GPC
Statement 19/07/2016 - 17/08/2016,Adults and Communities,CENTRAL ENG COOP,18/07/2016,4.72,Materials - General,Department Stores,GPC
Statement 19/07/2016 - 17/08/2016,Adults and Communities,CENTRAL ENG COOP,19/07/2016,67.42,Materials - General,Department Stores,GPC
Statement 19/07/2016 - 17/08/2016,Adults and Communities,CENTRAL ENG COOP,22/07/2016,73.87,Materials - General,Department Stores,GPC
Statement 19/07/2016 - 17/08/2016,Adults and Communities,CENTRAL ENG COOP,27/07/2016,42.80,Materials - General,Department Stores,GPC
Statement 19/07/2016 - 17/08/2016,Adults and Communities,CENTRAL ENG COOP,30/07/2016,10.15,Materials - General,Department Stores,GPC
Statement 19/07/2016 - 17/08/2016,Adults and Communities,CENTRAL ENG COOP,01/08/2016,41.43,Materials - General,Department Stores,GPC
Statement 19/07/2016 - 17/08/2016,Adults and Communities,CENTRAL ENG COOP,01/08/2016,3.78,Materials - General,Department Stores,GPC
Statement 19/07/2016 - 17/08/2016,Adults and Communities,CENTRAL ENG COOP,04/08/2016,108.87,Materials - General,Department Stores,GPC
Statement 19/07/2016 - 17/08/2016,Adults and Communities,CENTRAL ENG COOP,08/08/2016,34.58,Materials - General,Department Stores,GPC
Statement 19/07/2016 - 17/08/2016,Adults and Communities,CENTRAL ENG COOP,09/08/2016,36.70,Materials - General,Department Stores,GPC
Statement 19/07/2016 - 17/08/2016,Adults and Communities,CENTRAL ENG COOP,10/08/2016,47.43,Materials - General,Department Stores,GPC
Statement 19/07/2016 - 17/08/2016,Adults and Communities,CENTRAL ENG COOP,11/08/2016,46.23,Materials - General,Department Stores,GPC
Statement 19/07/2016 - 17/08/2016,Adults and Communities,CENTRAL ENG COOP,13/08/2016,50.56,Materials - General,Department Stores,GPC
Statement 19/07/2016 - 17/08/2016,Adults and Communities,CENTRAL ENG COOP,13/08/2016,10.58,Materials - General,Department Stores,GPC
Statement 19/07/2016 - 17/08/2016,Adults and Communities,CENTRAL ENG COOP,15/08/2016,8.00,Materials - General,Department Stores,GPC
Statement 19/07/2016 - 17/08/2016,Adults and Communities,CENTRAL ENGLAND CO,23/07/2016,2.78,Materials - General,Department Stores,GPC
Statement 19/07/2016 - 17/08/2016,Adults and Communities,CHARNWOOD BOROUGH COUNCI,21/07/2016,6.00,Casual/Essential - General,Automobile Parking Lots and Garages,GPC
Statement 19/07/2016 - 17/08/2016,Adults and Communities,CHARNWOOD BOROUGH COUNCI,08/08/2016,3.20,Casual/Essential - General,Automobile Parking Lots and Garages,GPC
Statement 19/07/2016 - 17/08/2016,Adults and Communities,CITY & GUILDS,18/07/2016,737.00,Exam Fees - General,Charitable and Social Service Organizations,GPC
Statement 19/07/2016 - 17/08/2016,Adults and Communities,CITY & GUILDS,08/08/2016,707.50,Exam Fees - General,Charitable and Social Service Organizations,GPC
Statement 19/07/2016 - 17/08/2016,Adults and Communities,CITY & GUILDS,09/08/2016,655.00,Exam Fees - General,Charitable and Social Service Organizations,GPC
Statement 19/07/2016 - 17/08/2016,Adults and Communities,CITY & GUILDS,10/08/2016,733.00,Exam Fees - General,Charitable and Social Service Organizations,GPC
Statement 19/07/2016 - 17/08/2016,Adults and Communities,CLARKE OPTICIANS,27/07/2016,385.00,Operational Equipment - DDA,Opticians,GPC
Statement 19/07/2016 - 17/08/2016,Adults and Communities,COLLECTIONSTRUSTUK,28/07/2016,422.80,Other Services - General,Charitable and Social Service Organizations,GPC
Statement 19/07/2016 - 17/08/2016,Adults and Communities,CONSERVATION BY DE,02/08/2016,541.80,Other Equipment & Materials - General,Industrial Supplies Not Elsewhere Classified,GPC
Statement 19/07/2016 - 17/08/2016,Adults and Communities,CORES & TUBES LTD,02/08/2016,31.20,Other Expenditure - General,Durable Goods Not Elsewhere Classified,GPC
Statement 19/07/2016 - 17/08/2016,Adults and Communities,CURRYS SUPERSTORE,26/07/2016,141.99,Operational Equipment - General,"RADIO, TELEVISION, AND STEREO STORES (ELECTRONIC STORES)",GPC
Statement 19/07/2016 - 17/08/2016,Adults and Communities,DOMESTIC & GENERAL,12/08/2016,93.60,Schools Agency staff - Teaching Staff,Insurance-Sales and Underwriting,GPC
Statement 19/07/2016 - 17/08/2016,Adults and Communities,EAST MIDLANDS LEICESTER,26/07/2016,7.50,Casual/Essential - General,Automobile Parking Lots and Garages,GPC
Statement 19/07/2016 - 17/08/2016,Adults and Communities,EAST MIDLANDS TRAI,26/07/2016,61.40,Casual/Essential - General,Passenger Railways,GPC
Statement 19/07/2016 - 17/08/2016,Adults and Communities,EAST MIDLANDS TRAI,05/08/2016,37.75,Public Transport -  Staff - General,Passenger Railways,GPC
Statement 19/07/2016 - 17/08/2016,Adults and Communities,EASTMIDLANDSTRAINS,18/07/2016,19.00,Casual/Essential - General,Passenger Railways,GPC
Statement 19/07/2016 - 17/08/2016,Adults and Communities,EB  HOW SHOULD MUSEUMS,03/08/2016,11.11,Other Equipment & Materials - General,Business Services-Not Elsewhere Classified,GPC
Statement 19/07/2016 - 17/08/2016,Adults and Communities,FEDERAL EXPRESS EUROPE,09/08/2016,17.11,Postal Services - General,"Courier Services-Air and Ground, and Freight Forw",GPC
Statement 19/07/2016 - 17/08/2016,Adults and Communities,FOREIGN EXCHANGE FEE,02/08/2016,0.42,IT Equipment - Licences,Misc-Unknown,GPC
Statement 19/07/2016 - 17/08/2016,Adults and Communities,FOREIGN EXCHANGE FEE,25/07/2016,0.53,Schools Agency staff - Support Staff,Misc-Unknown,GPC
Statement 19/07/2016 - 17/08/2016,Adults and Communities,GRO HM PASSPORT OFFICE,14/07/2016,-18.50,Other Expenditure - General,Government Services-Not Elsewhere Classified,GPC
Statement 19/07/2016 - 17/08/2016,Adults and Communities,H&BBC INTERNET,05/08/2016,21.46,Other Expenditure - General,Government Services-Not Elsewhere Classified,GPC
Statement 19/07/2016 - 17/08/2016,Adults and Communities,H&BBC INTERNET,05/08/2016,21.46,Other Expenditure - General,Government Services-Not Elsewhere Classified,GPC
Statement 19/07/2016 - 17/08/2016,Adults and Communities,H&BBC INTERNET,08/08/2016,21.46,Other Expenditure - General,Government Services-Not Elsewhere Classified,GPC
Statement 19/07/2016 - 17/08/2016,Adults and Communities,HMCOURTS-SERVICE.G,11/08/2016,357.08,Other Expenditure - General,Fines,GPC
Statement 19/07/2016 - 17/08/2016,Adults and Communities,HOME BARGAINS,23/07/2016,3.32,Other Equipment & Materials - General,Hardware Stores,GPC
Statement 19/07/2016 - 17/08/2016,Adults and Communities,ICELAND,21/07/2016,29.58,Materials - General,"Grocery Stores, Supermarkets",GPC
Statement 19/07/2016 - 17/08/2016,Adults and Communities,ICELAND,30/07/2016,4.50,Materials - General,"Grocery Stores, Supermarkets",GPC
Statement 19/07/2016 - 17/08/2016,Adults and Communities,ICELAND,04/08/2016,24.55,Materials - General,"Grocery Stores, Supermarkets",GPC
Statement 19/07/2016 - 17/08/2016,Adults and Communities,ICELAND,11/08/2016,7.30,Materials - General,"Grocery Stores, Supermarkets",GPC
Statement 19/07/2016 - 17/08/2016,Adults and Communities,IKAST ETIKET APS,25/07/2016,9.74,General Equipment - General,Miscellaneous Apparel and Accessory Stores,GPC
Statement 19/07/2016 - 17/08/2016,Adults and Communities,IKAST ETIKET APS,25/07/2016,2.45,Postal Services - General,Miscellaneous Apparel and Accessory Stores,GPC
Statement 19/07/2016 - 17/08/2016,Adults and Communities,IKEA SACAT,18/07/2016,10.33,Consultants & Specialists - General,Miscellaneous House Furnishing Specialty Shops,GPC
Statement 19/07/2016 - 17/08/2016,Adults and Communities,JOHNSTONES DECORATING,26/07/2016,60.00,Aids & Adaptations - Minor Adaptations,"Glass, Paint, Wallpaper Stores",GPC
Statement 19/07/2016 - 17/08/2016,Adults and Communities,JOHNSTONES DECORATING,26/07/2016,60.00,Aids & Adaptations - Minor Adaptations,"Glass, Paint, Wallpaper Stores",GPC
Statement 19/07/2016 - 17/08/2016,Adults and Communities,KINGSWAY TYRES (COALVI,15/08/2016,20.83,R&M of Vehicles-Non Contract - General,Automotive Tire Stores,GPC
Statement 19/07/2016 - 17/08/2016,Adults and Communities,LCC CATERING SERVICES,03/08/2016,4.50,Other Expenditure - General,Government Services-Not Elsewhere Classified,GPC
Statement 19/07/2016 - 17/08/2016,Adults and Communities,LEIC CITY COUNCIL,20/07/2016,23.00,Other Expenditure - General,Government Services-Not Elsewhere Classified,GPC
Statement 19/07/2016 - 17/08/2016,Adults and Communities,LEIC CITY COUNCIL,25/07/2016,23.00,Other Expenditure - General,Government Services-Not Elsewhere Classified,GPC
Statement 19/07/2016 - 17/08/2016,Adults and Communities,LEIC CITY COUNCIL,28/07/2016,-20.00,Other Expenditure - General,Government Services-Not Elsewhere Classified,GPC
Statement 19/07/2016 - 17/08/2016,Adults and Communities,LEIC CITY COUNCIL,02/08/2016,13.00,Other Expenditure - General,Government Services-Not Elsewhere Classified,GPC
Statement 19/07/2016 - 17/08/2016,Adults and Communities,LEIC CITY COUNCIL,11/08/2016,23.00,Other Expenditure - General,Government Services-Not Elsewhere Classified,GPC
Statement 19/07/2016 - 17/08/2016,Adults and Communities,LEIC CITY COUNCIL,11/08/2016,23.00,Other Expenditure - General,Government Services-Not Elsewhere Classified,GPC
Statement 19/07/2016 - 17/08/2016,Adults and Communities,LEICESTERSHIRE C COUNC,02/08/2016,21.00,Other Expenditure - General,Government Services-Not Elsewhere Classified,GPC
Statement 19/07/2016 - 17/08/2016,Adults and Communities,LEICESTERSHIRE C COUNC,04/08/2016,-21.00,Other Expenditure - General,Government Services-Not Elsewhere Classified,GPC
Statement 19/07/2016 - 17/08/2016,Adults and Communities,LEICESTERSHIRE C COUNC,15/08/2016,11.00,Other Expenditure - General,Government Services-Not Elsewhere Classified,GPC
Statement 19/07/2016 - 17/08/2016,Adults and Communities,LEICESTERSHIRE C.COUNC,26/07/2016,25.00,Other Expenditure - General,Government Services-Not Elsewhere Classified,GPC
Statement 19/07/2016 - 17/08/2016,Adults and Communities,LITTLEWOODS CLEAR,09/08/2016,4.00,Materials - General,Discount Stores,GPC
Statement 19/07/2016 - 17/08/2016,Adults and Communities,MAX SPIELMANN LTD,29/07/2016,5.60,Printing - General,Photographic Studios,GPC
Statement 19/07/2016 - 17/08/2016,Adults and Communities,METRO STORES,29/07/2016,7.00,Materials - General,"Grocery Stores, Supermarkets",GPC
Statement 19/07/2016 - 17/08/2016,Adults and Communities,METRO STORES,29/07/2016,7.00,Materials - General,"Grocery Stores, Supermarkets",GPC
Statement 19/07/2016 - 17/08/2016,Adults and Communities,METRO STORES,05/08/2016,8.10,Materials - General,"Grocery Stores, Supermarkets",GPC
Statement 19/07/2016 - 17/08/2016,Adults and Communities,MORPLAN LTD,12/08/2016,155.54,Other Expenditure - General,"Stationery, Office, and School Supply Stores",GPC
Statement 19/07/2016 - 17/08/2016,Adults and Communities,NAT MUSEUM OF CHILDHOO,26/07/2016,5.00,Materials - General,"Gift, Card, Novelty, and Souvenir Shops",GPC
Statement 19/07/2016 - 17/08/2016,Adults and Communities,NTTNGHM CSTLE CAFE,21/07/2016,75.00,Training Expenses - General,Government Services-Not Elsewhere Classified,GPC
Statement 19/07/2016 - 17/08/2016,Adults and Communities,NWLDC CARD PAYMENT,18/07/2016,90.78,Subscriptions - General,Government Services-Not Elsewhere Classified,GPC
Statement 19/07/2016 - 17/08/2016,Adults and Communities,NWLDC CARD PAYMENT,22/07/2016,357.00,Subscriptions - General,Government Services-Not Elsewhere Classified,GPC
Statement 19/07/2016 - 17/08/2016,Adults and Communities,OCADO LTD.,19/07/2016,77.01,Provisions - General,"Miscellaneous Food Stores-Convenience Stores, Mark",GPC
Statement 19/07/2016 - 17/08/2016,Adults and Communities,OCADO LTD.,25/07/2016,98.40,Provisions - General,"Miscellaneous Food Stores-Convenience Stores, Mark",GPC
Statement 19/07/2016 - 17/08/2016,Adults and Communities,OCADO LTD.,29/07/2016,106.04,Provisions - General,"Miscellaneous Food Stores-Convenience Stores, Mark",GPC
Statement 19/07/2016 - 17/08/2016,Adults and Communities,OCADO LTD.,01/08/2016,101.55,Provisions - General,"Miscellaneous Food Stores-Convenience Stores, Mark",GPC
Statement 19/07/2016 - 17/08/2016,Adults and Communities,OCADO LTD.,05/08/2016,131.62,Provisions - General,"Miscellaneous Food Stores-Convenience Stores, Mark",GPC
Statement 19/07/2016 - 17/08/2016,Adults and Communities,OCADO LTD.,08/08/2016,113.89,Provisions - General,"Miscellaneous Food Stores-Convenience Stores, Mark",GPC
Statement 19/07/2016 - 17/08/2016,Adults and Communities,OCADO LTD.,15/08/2016,115.21,Provisions - General,"Miscellaneous Food Stores-Convenience Stores, Mark",GPC
Statement 19/07/2016 - 17/08/2016,Adults and Communities,OCADO RETAIL LIMIT,22/07/2016,98.61,Provisions - General,"Miscellaneous Food Stores-Convenience Stores, Mark",GPC
Statement 19/07/2016 - 17/08/2016,Adults and Communities,OCADO RETAIL LIMIT,15/08/2016,202.73,Provisions - General,"Miscellaneous Food Stores-Convenience Stores, Mark",GPC
Statement 19/07/2016 - 17/08/2016,Adults and Communities,PAYPAL  330442604,20/07/2016,4.97,Materials - General,"Precious Stones and Metals, Watches and Jewelry",GPC
Statement 19/07/2016 - 17/08/2016,Adults and Communities,PAYPAL  BGOODS,25/07/2016,17.90,Materials - General,Hardware Stores,GPC
Statement 19/07/2016 - 17/08/2016,Adults and Communities,PAYPAL  BLACKPOOLRO,26/07/2016,2.85,Materials - General,Department Stores,GPC
Statement 19/07/2016 - 17/08/2016,Adults and Communities,PAYPAL  IANSYST LTD,21/07/2016,19.95,Operational Equipment - DDA,"RADIO, TELEVISION, AND STEREO STORES (ELECTRONIC STORES)",GPC
Statement 19/07/2016 - 17/08/2016,Adults and Communities,PAYPAL  ILLUSION,22/07/2016,4.48,Other Equipment & Materials - General,"Theatrical Products (Except Motion Pictures), Tick",GPC
Statement 19/07/2016 - 17/08/2016,Adults and Communities,PAYPAL  PCROSSMAN,02/08/2016,100.00,Materials - General,Miscellaneous Apparel and Accessory Stores,GPC
Statement 19/07/2016 - 17/08/2016,Adults and Communities,PAYPAL  POPALTECHNO,27/07/2016,14.95,Materials - General,"RADIO, TELEVISION, AND STEREO STORES (ELECTRONIC STORES)",GPC
Statement 19/07/2016 - 17/08/2016,Adults and Communities,PAYPAL  PORTLANDRAN,20/07/2016,11.57,Materials - General,"Artist Supply Stores, Craft Shops",GPC
Statement 19/07/2016 - 17/08/2016,Adults and Communities,PAYPAL  VIKINGDIREC,05/08/2016,129.90,General Equipment - General,Chemicals and Allied Products Not Elsewhere Classi,GPC
Statement 19/07/2016 - 17/08/2016,Adults and Communities,PAYPAL  WHITEHINGEL,11/08/2016,4.85,Other Expenditure - General,"Hobby, Toy, and Game Shops",GPC
Statement 19/07/2016 - 17/08/2016,Adults and Communities,PONDEN HOME,10/08/2016,225.19,Materials - General,Miscellaneous House Furnishing Specialty Shops,GPC
Statement 19/07/2016 - 17/08/2016,Adults and Communities,POST OFFICE COUNTER,19/07/2016,64.00,Postal Services - General,Postage Stamps,GPC
Statement 19/07/2016 - 17/08/2016,Adults and Communities,POST OFFICE COUNTER,19/07/2016,55.00,Postal Services - General,Postage Stamps,GPC
Statement 19/07/2016 - 17/08/2016,Adults and Communities,POST OFFICE COUNTER,19/07/2016,37.50,Postal Services - General,Postage Stamps,GPC
Statement 19/07/2016 - 17/08/2016,Adults and Communities,POST OFFICE COUNTER,27/07/2016,1.74,Postal Services - General,Postage Stamps,GPC
Statement 19/07/2016 - 17/08/2016,Adults and Communities,POST OFFICE COUNTER,30/07/2016,5.60,Postal Services - General,Postage Stamps,GPC
Statement 19/07/2016 - 17/08/2016,Adults and Communities,POUNDLAND LTD 1142,08/08/2016,17.00,Materials - General,Discount Stores,GPC
Statement 19/07/2016 - 17/08/2016,Adults and Communities,POUNDSTRETCHER 292,08/08/2016,5.97,Materials - General,"Drapery, Window Coverings, and Upholstery Stores",GPC
Statement 19/07/2016 - 17/08/2016,Adults and Communities,POUNDSTRETCHER 292,10/08/2016,18.00,Materials - General,"Drapery, Window Coverings, and Upholstery Stores",GPC
Statement 19/07/2016 - 17/08/2016,Adults and Communities,POUNDWORLD RETAIL,20/07/2016,5.00,Materials - General,Discount Stores,GPC
Statement 19/07/2016 - 17/08/2016,Adults and Communities,PREMIER INN44014775,18/07/2016,76.99,Subsistence - General,PREMIER TRAVEL,GPC
Statement 19/07/2016 - 17/08/2016,Adults and Communities,PREMIER INN44014775,18/07/2016,143.98,Subsistence - General,PREMIER TRAVEL,GPC
Statement 19/07/2016 - 17/08/2016,Adults and Communities,ROYAL MAIL,01/08/2016,110.00,Postal Services - General,Postage Stamps,GPC
Statement 19/07/2016 - 17/08/2016,Adults and Communities,RS COMPONENTS,15/08/2016,47.44,R & M of Buildings - General,Electrical Parts and Equipment,GPC
Statement 19/07/2016 - 17/08/2016,Adults and Communities,RYMAN,19/07/2016,1.87,Stationery - General,"Stationery, Office, and School Supply Stores",GPC
Statement 19/07/2016 - 17/08/2016,Adults and Communities,RYMAN,23/07/2016,4.99,Stationery - General,"Stationery, Office, and School Supply Stores",GPC
Statement 19/07/2016 - 17/08/2016,Adults and Communities,SAFESTORE LIMITED,29/07/2016,117.00,Other Expenditure - General,Public Warehousing,GPC
Statement 19/07/2016 - 17/08/2016,Adults and Communities,SAFESTORE LIMITED,12/08/2016,117.00,Other Expenditure - General,Public Warehousing,GPC
Statement 19/07/2016 - 17/08/2016,Adults and Communities,SAINSBURYS S/MKTS,21/07/2016,11.98,Consultants & Specialists - General,"Grocery Stores, Supermarkets",GPC
Statement 19/07/2016 - 17/08/2016,Adults and Communities,Sainsburys S/mkts,27/07/2016,9.58,Materials - General,"Grocery Stores, Supermarkets",GPC
Statement 19/07/2016 - 17/08/2016,Adults and Communities,Sainsburys S/mkts,27/07/2016,14.20,Materials - General,"Grocery Stores, Supermarkets",GPC
Statement 19/07/2016 - 17/08/2016,Adults and Communities,Sainsburys S/mkts,08/08/2016,5.00,Materials - General,"Grocery Stores, Supermarkets",GPC
Statement 19/07/2016 - 17/08/2016,Adults and Communities,SAINSBURYS S/MKTS,09/08/2016,3.78,Operational Equipment - General,"Grocery Stores, Supermarkets",GPC
Statement 19/07/2016 - 17/08/2016,Adults and Communities,SAINSBURYS S/MKTS,21/07/2016,8.33,R&M of Vehicles-Non Contract - General,Service Stations (with or without Ancillary Servic,GPC
Statement 19/07/2016 - 17/08/2016,Adults and Communities,SATCOL-LOUGHBOROUGH,23/07/2016,5.98,Other Equipment & Materials - General,Charitable and Social Service Organizations,GPC
Statement 19/07/2016 - 17/08/2016,Adults and Communities,SCREWFIX,10/08/2016,28.32,Aids & Adaptations - Minor Adaptations,"Building Materials, Lumber Stores",GPC
Statement 19/07/2016 - 17/08/2016,Adults and Communities,SCREWFIX,26/07/2016,41.66,General Equipment - General,"Building Materials, Lumber Stores",GPC
Statement 19/07/2016 - 17/08/2016,Adults and Communities,SCREWFIX,03/08/2016,6.66,General Equipment - General,"Building Materials, Lumber Stores",GPC
Statement 19/07/2016 - 17/08/2016,Adults and Communities,SCREWFIX,08/08/2016,56.66,General Equipment - General,"Building Materials, Lumber Stores",GPC
Statement 19/07/2016 - 17/08/2016,Adults and Communities,SCREWFIX DIRECT,09/08/2016,36.48,Aids & Adaptations - Minor Adaptations,"Building Materials, Lumber Stores",GPC
Statement 19/07/2016 - 17/08/2016,Adults and Communities,SETON,03/08/2016,21.43,Other Expenditure - General,Durable Goods Not Elsewhere Classified,GPC
Statement 19/07/2016 - 17/08/2016,Adults and Communities,SP  BATH PUBLISHING L,05/08/2016,28.45,IT Equipment - Software,Computer Software Stores,GPC
Statement 19/07/2016 - 17/08/2016,Adults and Communities,STAGEDEPOT.CO.UK,05/08/2016,14.64,Materials - General,Hardware Stores,GPC
Statement 19/07/2016 - 17/08/2016,Adults and Communities,STAPLES UK,27/07/2016,38.28,Stationery - General,"Stationery, Office, and School Supply Stores",GPC
Statement 19/07/2016 - 17/08/2016,Adults and Communities,STAPLES UK,05/08/2016,16.62,Stationery - General,"Stationery, Office, and School Supply Stores",GPC
Statement 19/07/2016 - 17/08/2016,Adults and Communities,SURVEYMONKEY.COM,26/07/2016,21.67,IT Equipment - Licences,Continuity/Subscription Merchants,GPC
Statement 19/07/2016 - 17/08/2016,Adults and Communities,SURVEYMONKEY.COM,12/08/2016,21.67,IT Equipment - Licences,Continuity/Subscription Merchants,GPC
Statement 19/07/2016 - 17/08/2016,Adults and Communities,TALKTALK BUSINESS,22/07/2016,70.11,Telephones - General,Telecommunication Service Including Local and Long,GPC
Statement 19/07/2016 - 17/08/2016,Adults and Communities,TESCO - Hughes,09/08/2016,100.00,General Equipment - General,Miscellaneous and Specialty Retail Stores,GPC
Statement 19/07/2016 - 17/08/2016,Adults and Communities,TESCO - Tescopay,09/08/2016,29.00,General Equipment - General,Miscellaneous and Specialty Retail Stores,GPC
Statement 19/07/2016 - 17/08/2016,Adults and Communities,TESCO DIRECT,09/08/2016,15.60,General Equipment - General,Miscellaneous and Specialty Retail Stores,GPC
Statement 19/07/2016 - 17/08/2016,Adults and Communities,TESCO STORE 2846,02/08/2016,16.00,Materials - General,"Grocery Stores, Supermarkets",GPC
Statement 19/07/2016 - 17/08/2016,Adults and Communities,TESCO STORES 5182,09/08/2016,4.16,General Equipment - General,"Grocery Stores, Supermarkets",GPC
Statement 19/07/2016 - 17/08/2016,Adults and Communities,TESCO STORES 5182,26/07/2016,9.83,Materials - General,"Grocery Stores, Supermarkets",GPC
Statement 19/07/2016 - 17/08/2016,Adults and Communities,TESCO STORES 5182,22/07/2016,159.13,Provisions - General,"Grocery Stores, Supermarkets",GPC
Statement 19/07/2016 - 17/08/2016,Adults and Communities,TESCO STORES 5182,25/07/2016,121.63,Provisions - General,"Grocery Stores, Supermarkets",GPC
Statement 19/07/2016 - 17/08/2016,Adults and Communities,TESCO STORES 5182,29/07/2016,103.80,Provisions - General,"Grocery Stores, Supermarkets",GPC
Statement 19/07/2016 - 17/08/2016,Adults and Communities,TESCO STORES 5182,01/08/2016,19.80,Provisions - General,"Grocery Stores, Supermarkets",GPC
Statement 19/07/2016 - 17/08/2016,Adults and Communities,TESCO STORES 5182,01/08/2016,150.18,Provisions - General,"Grocery Stores, Supermarkets",GPC
Statement 19/07/2016 - 17/08/2016,Adults and Communities,TESCO STORES 5182,05/08/2016,153.70,Provisions - General,"Grocery Stores, Supermarkets",GPC
Statement 19/07/2016 - 17/08/2016,Adults and Communities,TESCO STORES 5182,08/08/2016,150.44,Provisions - General,"Grocery Stores, Supermarkets",GPC
Statement 19/07/2016 - 17/08/2016,Adults and Communities,TESCO STORES 5182,12/08/2016,155.71,Provisions - General,"Grocery Stores, Supermarkets",GPC
Statement 19/07/2016 - 17/08/2016,Adults and Communities,TESCO STORES 5182,15/08/2016,77.56,Provisions - General,"Grocery Stores, Supermarkets",GPC
Statement 19/07/2016 - 17/08/2016,Adults and Communities,TESCO-STORES 2846,03/08/2016,15.55,Materials - General,"Grocery Stores, Supermarkets",GPC
Statement 19/07/2016 - 17/08/2016,Adults and Communities,THE RANGE,26/07/2016,16.44,Materials - General,Department Stores,GPC
Statement 19/07/2016 - 17/08/2016,Adults and Communities,THE RANGE,05/08/2016,22.99,Materials - General,Department Stores,GPC
Statement 19/07/2016 - 17/08/2016,Adults and Communities,TINSELTOWN,10/08/2016,10.54,Other Expenditure - General,"Eating Places, Restaurants",GPC
Statement 19/07/2016 - 17/08/2016,Adults and Communities,TP COALVILLE,16/08/2016,12.87,Aids & Adaptations - Minor Adaptations,"Building Materials, Lumber Stores",GPC
Statement 19/07/2016 - 17/08/2016,Adults and Communities,TRAINLINE,08/08/2016,10.05,Public Transport -  Staff - General,Passenger Railways,GPC
Statement 19/07/2016 - 17/08/2016,Adults and Communities,TREEHOUSE,23/07/2016,19.11,Schools Agency staff - Support Staff,Schools and Educational Services-Not Elsewhere Cla,GPC
Statement 19/07/2016 - 17/08/2016,Adults and Communities,UPT - EMT NOTTINGHAM RAI,05/08/2016,5.83,Public Transport -  Staff - General,Professional Services-Not Elsewhere Classified,GPC
Statement 19/07/2016 - 17/08/2016,Adults and Communities,W BOYES & CO LTD MELTO,28/07/2016,12.00,Display/Conservn/Exhibitions - Exhibitions,Discount Stores,GPC
Statement 19/07/2016 - 17/08/2016,Adults and Communities,WATERSTONES,01/08/2016,1081.64,Books - General,Book Stores,GPC
Statement 19/07/2016 - 17/08/2016,Adults and Communities,WELL 200702,20/07/2016,2.29,Other Equipment & Materials - General,"Drug Stores, Pharmacies",GPC
Statement 19/07/2016 - 17/08/2016,Adults and Communities,WH SMITH,11/08/2016,22.00,Newspapers & Periodicals - General,News Dealers and Newsstands,GPC
Statement 19/07/2016 - 17/08/2016,Adults and Communities,WILKO RETAIL LIMIT,18/07/2016,33.75,Materials - General,Household Appliance Stores,GPC
Statement 19/07/2016 - 17/08/2016,Adults and Communities,WILKO RETAIL LIMIT,22/07/2016,24.92,Materials - General,Household Appliance Stores,GPC
Statement 19/07/2016 - 17/08/2016,Adults and Communities,WILKO RETAIL LIMIT,25/07/2016,8.00,Materials - General,Household Appliance Stores,GPC
Statement 19/07/2016 - 17/08/2016,Adults and Communities,WILKO RETAIL LIMIT,29/07/2016,10.00,Materials - General,Household Appliance Stores,GPC
Statement 19/07/2016 - 17/08/2016,Adults and Communities,WILKO RETAIL LIMIT,03/08/2016,17.00,Materials - General,Household Appliance Stores,GPC
Statement 19/07/2016 - 17/08/2016,Adults and Communities,WILKO RETAIL LIMIT,03/08/2016,20.58,Materials - General,Household Appliance Stores,GPC
Statement 19/07/2016 - 17/08/2016,Adults and Communities,WILKO RETAIL LIMIT,08/08/2016,36.00,Materials - General,Household Appliance Stores,GPC
Statement 19/07/2016 - 17/08/2016,Adults and Communities,WILKO RETAIL LIMIT,10/08/2016,4.30,Materials - General,Household Appliance Stores,GPC
Statement 19/07/2016 - 17/08/2016,Adults and Communities,WILKO RETAIL LIMIT,16/08/2016,2.40,Materials - General,Household Appliance Stores,GPC
Statement 19/07/2016 - 17/08/2016,Adults and Communities,WILKO RETAIL LIMIT,27/07/2016,4.16,Stationery - General,Household Appliance Stores,GPC
Statement 19/07/2016 - 17/08/2016,Adults and Communities,WILKO.COM,03/08/2016,40.00,General Equipment - General,Household Appliance Stores,GPC
Statement 19/07/2016 - 17/08/2016,Adults and Communities,WM MORRISON 054,22/07/2016,104.16,Materials - General,"Grocery Stores, Supermarkets",GPC
Statement 19/07/2016 - 17/08/2016,Adults and Communities,WM MORRISON 054,29/07/2016,127.51,Materials - General,"Grocery Stores, Supermarkets",GPC
Statement 19/07/2016 - 17/08/2016,Adults and Communities,WM MORRISON 054,06/08/2016,152.59,Materials - General,"Grocery Stores, Supermarkets",GPC
Statement 19/07/2016 - 17/08/2016,Adults and Communities,WM MORRISON 054,15/08/2016,61.11,Materials - General,"Grocery Stores, Supermarkets",GPC
Statement 19/07/2016 - 17/08/2016,Adults and Communities,WP-WARWICKSHIRE CO,25/07/2016,20.64,Other Expenditure - General,Government Services-Not Elsewhere Classified,GPC
Statement 19/07/2016 - 17/08/2016,Adults and Communities,WP-WARWICKSHIRE CO,26/07/2016,10.64,Other Expenditure - General,Government Services-Not Elsewhere Classified,GPC
Statement 19/07/2016 - 17/08/2016,Adults and Communities,WWW.BAKERROSS.CO.UK,28/07/2016,74.31,Display/Conservn/Exhibitions - Exhibitions,"Artist Supply Stores, Craft Shops",GPC
Statement 19/07/2016 - 17/08/2016,Adults and Communities,WWW.CATER4YOU.CO.UK,19/07/2016,56.31,Contract Catering - General,Caterers,GPC
Statement 19/07/2016 - 17/08/2016,Adults and Communities,WWW.ECOSORGANICPLANTS.,04/08/2016,54.92,Materials - General,Hardware Stores,GPC
Statement 19/07/2016 - 17/08/2016,Adults and Communities,WWW.GREENFINGERS.COM,08/08/2016,21.49,Protective Clothing & Uniforms - General,"Lawn and Garden Supply Stores, Nurseries",GPC
Statement 19/07/2016 - 17/08/2016,Adults and Communities,WWW.HIGHFIELDABC.COM,15/08/2016,180.00,Schools Agency staff - Teaching Staff,Miscellaneous Personal Services-Not Elsewhere Clas,GPC
Statement 19/07/2016 - 17/08/2016,Adults and Communities,WWW.NEOPOST.CO.UK,16/08/2016,459.00,Stationery - General,"Stationary, Office Supplies, Printing and Writing",GPC
Statement 19/07/2016 - 17/08/2016,Adults and Communities,WWW.RYMAN.CO.UK,20/07/2016,26.99,Stationery - General,"Stationery, Office, and School Supply Stores",GPC
Statement 19/07/2016 - 17/08/2016,Adults and Communities,WWW.VIKING-DIRECT.CO.U,09/08/2016,16.66,Stationery - General,"Stationary, Office Supplies, Printing and Writing",GPC
Statement 19/07/2016 - 17/08/2016,Adults and Communities,WWW.VIKING-DIRECT.CO.U,11/08/2016,33.37,Stationery - General,"Stationary, Office Supplies, Printing and Writing",GPC
Statement 19/07/2016 - 17/08/2016,Adults and Communities,WWW.VIKING-DIRECT.CO.U,15/08/2016,486.45,Stationery - General,"Stationary, Office Supplies, Printing and Writing",GPC
Statement 19/07/2016 - 17/08/2016,Adults and Communities,WWW.ZEN.CO.UK,11/08/2016,34.76,Telephones - General,Computer Network/Information Services,GPC
Statement 19/07/2016 - 17/08/2016,C&YPS-Non Delegated,A2B OFFICE TECHNOL,22/07/2016,71.95,Stationery - General,"Stationery, Office, and School Supply Stores",GPC
Statement 19/07/2016 - 17/08/2016,C&YPS-Non Delegated,ADVANCE CARPETS,05/08/2016,270.00,Materials - General,Floor Coverings   Stores,GPC
Statement 19/07/2016 - 17/08/2016,C&YPS-Non Delegated,ALDI,29/07/2016,13.24,Materials - General,"Grocery Stores, Supermarkets",GPC
Statement 19/07/2016 - 17/08/2016,C&YPS-Non Delegated,ALDI,08/08/2016,5.54,Materials - General,"Grocery Stores, Supermarkets",GPC
Statement 19/07/2016 - 17/08/2016,C&YPS-Non Delegated,ALDI,12/08/2016,34.27,Materials - General,"Grocery Stores, Supermarkets",GPC
Statement 19/07/2016 - 17/08/2016,C&YPS-Non Delegated,ALDI,15/08/2016,132.88,Materials - General,"Grocery Stores, Supermarkets",GPC
Statement 19/07/2016 - 17/08/2016,C&YPS-Non Delegated,ALDI,25/07/2016,22.65,Other Expenditure - General,"Grocery Stores, Supermarkets",GPC
Statement 19/07/2016 - 17/08/2016,C&YPS-Non Delegated,ALDI,01/08/2016,24.42,Other Expenditure - General,"Grocery Stores, Supermarkets",GPC
Statement 19/07/2016 - 17/08/2016,C&YPS-Non Delegated,ALDI,06/08/2016,6.24,Other Expenditure - General,"Grocery Stores, Supermarkets",GPC
Statement 19/07/2016 - 17/08/2016,C&YPS-Non Delegated,ALDI,20/07/2016,73.37,Provisions - General,"Grocery Stores, Supermarkets",GPC
Statement 19/07/2016 - 17/08/2016,C&YPS-Non Delegated,ALDI,25/07/2016,18.20,Provisions - General,"Grocery Stores, Supermarkets",GPC
Statement 19/07/2016 - 17/08/2016,C&YPS-Non Delegated,ALDI,26/07/2016,65.94,Provisions - General,"Grocery Stores, Supermarkets",GPC
Statement 19/07/2016 - 17/08/2016,C&YPS-Non Delegated,ALDI,30/07/2016,53.01,Provisions - General,"Grocery Stores, Supermarkets",GPC
Statement 19/07/2016 - 17/08/2016,C&YPS-Non Delegated,ALDI,02/08/2016,5.14,Provisions - General,"Grocery Stores, Supermarkets",GPC
Statement 19/07/2016 - 17/08/2016,C&YPS-Non Delegated,ALDI,05/08/2016,49.60,Provisions - General,"Grocery Stores, Supermarkets",GPC
Statement 19/07/2016 - 17/08/2016,C&YPS-Non Delegated,ALDI,08/08/2016,94.20,Provisions - General,"Grocery Stores, Supermarkets",GPC
Statement 19/07/2016 - 17/08/2016,C&YPS-Non Delegated,ALDI,09/08/2016,39.36,Provisions - General,"Grocery Stores, Supermarkets",GPC
Statement 19/07/2016 - 17/08/2016,C&YPS-Non Delegated,ALDI,11/08/2016,16.12,Provisions - General,"Grocery Stores, Supermarkets",GPC
Statement 19/07/2016 - 17/08/2016,C&YPS-Non Delegated,ALLPAY MOTO (CALLPAY/IVR,22/07/2016,128.20,Other Services - General,Charitable and Social Service Organizations,GPC
Statement 19/07/2016 - 17/08/2016,C&YPS-Non Delegated,ALTON TOWERS,02/08/2016,75.00,Personal Needs of Clients - Holidays & Outings,Tourist Attractions and Exhibits,GPC
Statement 19/07/2016 - 17/08/2016,C&YPS-Non Delegated,Amazon UK Marketplace,21/07/2016,7.74,Books - General,Book Stores,GPC
Statement 19/07/2016 - 17/08/2016,C&YPS-Non Delegated,Amazon UK Marketplace,26/07/2016,2.39,Books - General,Book Stores,GPC
Statement 19/07/2016 - 17/08/2016,C&YPS-Non Delegated,Amazon UK Marketplace,26/07/2016,10.95,Books - General,Book Stores,GPC
Statement 19/07/2016 - 17/08/2016,C&YPS-Non Delegated,Amazon UK Marketplace,29/07/2016,26.74,Books - General,Book Stores,GPC
Statement 19/07/2016 - 17/08/2016,C&YPS-Non Delegated,Amazon UK Marketplace,04/08/2016,11.98,Books - General,Book Stores,GPC
Statement 19/07/2016 - 17/08/2016,C&YPS-Non Delegated,Amazon UK Marketplace,10/08/2016,300.00,Books - General,Book Stores,GPC
Statement 19/07/2016 - 17/08/2016,C&YPS-Non Delegated,Amazon UK Marketplace,11/08/2016,7.95,Books - General,Book Stores,GPC
Statement 19/07/2016 - 17/08/2016,C&YPS-Non Delegated,Amazon UK Marketplace,16/08/2016,5.99,Books - General,Book Stores,GPC
Statement 19/07/2016 - 17/08/2016,C&YPS-Non Delegated,Amazon UK Marketplace,21/07/2016,66.97,IT Equipment - General,Book Stores,GPC
Statement 19/07/2016 - 17/08/2016,C&YPS-Non Delegated,Amazon UK Marketplace,26/07/2016,147.98,IT Equipment - General,Miscellaneous and Specialty Retail Stores,GPC
Statement 19/07/2016 - 17/08/2016,C&YPS-Non Delegated,Amazon UK Marketplace,05/08/2016,24.99,IT Equipment - General,Miscellaneous and Specialty Retail Stores,GPC
Statement 19/07/2016 - 17/08/2016,C&YPS-Non Delegated,Amazon UK Marketplace,21/07/2016,11.16,Materials - General,Miscellaneous and Specialty Retail Stores,GPC
Statement 19/07/2016 - 17/08/2016,C&YPS-Non Delegated,Amazon UK Marketplace,25/07/2016,4.11,Materials - General,Miscellaneous and Specialty Retail Stores,GPC
Statement 19/07/2016 - 17/08/2016,C&YPS-Non Delegated,Amazon UK Marketplace,25/07/2016,2.49,Materials - General,Miscellaneous and Specialty Retail Stores,GPC
Statement 19/07/2016 - 17/08/2016,C&YPS-Non Delegated,Amazon UK Marketplace,26/07/2016,2.57,Materials - General,Miscellaneous and Specialty Retail Stores,GPC
Statement 19/07/2016 - 17/08/2016,C&YPS-Non Delegated,Amazon UK Marketplace,26/07/2016,2.65,Materials - General,Miscellaneous and Specialty Retail Stores,GPC
Statement 19/07/2016 - 17/08/2016,C&YPS-Non Delegated,Amazon UK Marketplace,26/07/2016,9.99,Materials - General,Miscellaneous and Specialty Retail Stores,GPC
Statement 19/07/2016 - 17/08/2016,C&YPS-Non Delegated,Amazon UK Marketplace,26/07/2016,21.40,Materials - General,Miscellaneous and Specialty Retail Stores,GPC
Statement 19/07/2016 - 17/08/2016,C&YPS-Non Delegated,Amazon UK Marketplace,28/07/2016,28.58,Materials - General,Miscellaneous and Specialty Retail Stores,GPC
Statement 19/07/2016 - 17/08/2016,C&YPS-Non Delegated,Amazon UK Marketplace,29/07/2016,47.18,Materials - General,Miscellaneous and Specialty Retail Stores,GPC
Statement 19/07/2016 - 17/08/2016,C&YPS-Non Delegated,Amazon UK Marketplace,03/08/2016,2.49,Materials - General,Miscellaneous and Specialty Retail Stores,GPC
Statement 19/07/2016 - 17/08/2016,C&YPS-Non Delegated,Amazon UK Marketplace,05/08/2016,4.99,Materials - General,Miscellaneous and Specialty Retail Stores,GPC
Statement 19/07/2016 - 17/08/2016,C&YPS-Non Delegated,Amazon UK Marketplace,09/08/2016,22.14,Materials - General,Miscellaneous and Specialty Retail Stores,GPC
Statement 19/07/2016 - 17/08/2016,C&YPS-Non Delegated,Amazon UK Marketplace,11/08/2016,31.74,Materials - General,Miscellaneous and Specialty Retail Stores,GPC
Statement 19/07/2016 - 17/08/2016,C&YPS-Non Delegated,Amazon UK Marketplace,12/08/2016,22.77,Materials - General,Miscellaneous and Specialty Retail Stores,GPC
Statement 19/07/2016 - 17/08/2016,C&YPS-Non Delegated,Amazon UK Marketplace,12/08/2016,7.97,Materials - General,Miscellaneous and Specialty Retail Stores,GPC
Statement 19/07/2016 - 17/08/2016,C&YPS-Non Delegated,Amazon UK Marketplace,14/08/2016,31.73,Materials - General,Miscellaneous and Specialty Retail Stores,GPC
Statement 19/07/2016 - 17/08/2016,C&YPS-Non Delegated,Amazon UK Marketplace,16/08/2016,82.75,Materials - General,Miscellaneous and Specialty Retail Stores,GPC
Statement 19/07/2016 - 17/08/2016,C&YPS-Non Delegated,Amazon UK Marketplace,16/08/2016,44.46,Materials - General,Miscellaneous and Specialty Retail Stores,GPC
Statement 19/07/2016 - 17/08/2016,C&YPS-Non Delegated,Amazon UK Marketplace,03/08/2016,123.95,Other Equipment & Materials - General,Miscellaneous and Specialty Retail Stores,GPC
Statement 19/07/2016 - 17/08/2016,C&YPS-Non Delegated,Amazon UK Marketplace,04/08/2016,88.95,Other Equipment & Materials - General,Miscellaneous and Specialty Retail Stores,GPC
Statement 19/07/2016 - 17/08/2016,C&YPS-Non Delegated,Amazon UK Marketplace,10/08/2016,30.14,Other Equipment & Materials - General,Miscellaneous and Specialty Retail Stores,GPC
Statement 19/07/2016 - 17/08/2016,C&YPS-Non Delegated,Amazon UK Marketplace,11/08/2016,26.93,Other Equipment & Materials - General,Miscellaneous and Specialty Retail Stores,GPC
Statement 19/07/2016 - 17/08/2016,C&YPS-Non Delegated,Amazon UK Marketplace,15/08/2016,11.94,Other Equipment & Materials - General,Miscellaneous and Specialty Retail Stores,GPC
Statement 19/07/2016 - 17/08/2016,C&YPS-Non Delegated,Amazon UK Marketplace,30/07/2016,29.99,Other Expenditure - General,Book Stores,GPC
Statement 19/07/2016 - 17/08/2016,C&YPS-Non Delegated,Amazon UK Marketplace,30/07/2016,6.34,Other Expenditure - General,Miscellaneous and Specialty Retail Stores,GPC
Statement 19/07/2016 - 17/08/2016,C&YPS-Non Delegated,Amazon UK Marketplace,30/07/2016,19.34,Other Expenditure - General,Miscellaneous and Specialty Retail Stores,GPC
Statement 19/07/2016 - 17/08/2016,C&YPS-Non Delegated,Amazon UK Marketplace,30/07/2016,29.64,Other Expenditure - General,Miscellaneous and Specialty Retail Stores,GPC
Statement 19/07/2016 - 17/08/2016,C&YPS-Non Delegated,Amazon UK Marketplace,30/07/2016,10.11,Other Expenditure - General,Miscellaneous and Specialty Retail Stores,GPC
Statement 19/07/2016 - 17/08/2016,C&YPS-Non Delegated,Amazon UK Marketplace,30/07/2016,1.93,Other Expenditure - General,Miscellaneous and Specialty Retail Stores,GPC
Statement 19/07/2016 - 17/08/2016,C&YPS-Non Delegated,Amazon UK Marketplace,31/07/2016,3.93,Other Expenditure - General,Miscellaneous and Specialty Retail Stores,GPC
Statement 19/07/2016 - 17/08/2016,C&YPS-Non Delegated,Amazon UK Marketplace,06/08/2016,18.33,Other Expenditure - General,Book Stores,GPC
Statement 19/07/2016 - 17/08/2016,C&YPS-Non Delegated,Amazon UK Marketplace,06/08/2016,7.99,Other Expenditure - General,Book Stores,GPC
Statement 19/07/2016 - 17/08/2016,C&YPS-Non Delegated,Amazon UK Marketplace,07/08/2016,29.47,Other Expenditure - General,Book Stores,GPC
Statement 19/07/2016 - 17/08/2016,C&YPS-Non Delegated,Amazon UK Marketplace,29/07/2016,18.95,Stationery - General,Miscellaneous and Specialty Retail Stores,GPC
Statement 19/07/2016 - 17/08/2016,C&YPS-Non Delegated,Amazon UK Marketplace,04/08/2016,11.10,Stationery - General,Book Stores,GPC
Statement 19/07/2016 - 17/08/2016,C&YPS-Non Delegated,Amazon UK Marketplace,05/08/2016,12.58,Stationery - General,Miscellaneous and Specialty Retail Stores,GPC
Statement 19/07/2016 - 17/08/2016,C&YPS-Non Delegated,Amazon UK Marketplace,05/08/2016,32.94,Stationery - General,Miscellaneous and Specialty Retail Stores,GPC
Statement 19/07/2016 - 17/08/2016,C&YPS-Non Delegated,Amazon UK Marketplace,09/08/2016,17.04,Stationery - General,Miscellaneous and Specialty Retail Stores,GPC
Statement 19/07/2016 - 17/08/2016,C&YPS-Non Delegated,Amazon UK Marketplace,14/08/2016,8.99,Stationery - General,Miscellaneous and Specialty Retail Stores,GPC
Statement 19/07/2016 - 17/08/2016,C&YPS-Non Delegated,Amazon UK Marketplace,16/08/2016,16.86,Stationery - General,Miscellaneous and Specialty Retail Stores,GPC
Statement 19/07/2016 - 17/08/2016,C&YPS-Non Delegated,Amazon UK Retail,04/08/2016,19.98,IT Equipment - General,Direct Marketers - Other,GPC
Statement 19/07/2016 - 17/08/2016,C&YPS-Non Delegated,Amazon UK Retail,04/08/2016,74.99,Other Equipment & Materials - General,Direct Marketers - Other,GPC
Statement 19/07/2016 - 17/08/2016,C&YPS-Non Delegated,Amazon UK Retail,16/08/2016,11.53,Other Equipment & Materials - General,Direct Marketers - Other,GPC
Statement 19/07/2016 - 17/08/2016,C&YPS-Non Delegated,Amazon UK Retail,29/07/2016,19.02,Other Expenditure - General,Direct Marketers - Other,GPC
Statement 19/07/2016 - 17/08/2016,C&YPS-Non Delegated,Amazon UK Retail,30/07/2016,10.65,Other Expenditure - General,Direct Marketers - Other,GPC
Statement 19/07/2016 - 17/08/2016,C&YPS-Non Delegated,Amazon UK Retail,30/07/2016,10.00,Other Expenditure - General,Direct Marketers - Other,GPC
Statement 19/07/2016 - 17/08/2016,C&YPS-Non Delegated,Amazon UK Retail,31/07/2016,11.34,Other Expenditure - General,Direct Marketers - Other,GPC
Statement 19/07/2016 - 17/08/2016,C&YPS-Non Delegated,Amazon UK Retail,31/07/2016,11.34,Other Expenditure - General,Direct Marketers - Other,GPC
Statement 19/07/2016 - 17/08/2016,C&YPS-Non Delegated,Amazon UK Retail,04/08/2016,11.34,Other Expenditure - General,Direct Marketers - Other,GPC
Statement 19/07/2016 - 17/08/2016,C&YPS-Non Delegated,Amazon UK Retail,07/08/2016,67.76,Other Expenditure - General,Direct Marketers - Other,GPC
Statement 19/07/2016 - 17/08/2016,C&YPS-Non Delegated,Amazon UK Retail,09/08/2016,-11.34,Other Expenditure - General,Direct Marketers - Other,GPC
Statement 19/07/2016 - 17/08/2016,C&YPS-Non Delegated,Amazon UK Retail,09/08/2016,-11.34,Other Expenditure - General,Direct Marketers - Other,GPC
Statement 19/07/2016 - 17/08/2016,C&YPS-Non Delegated,AMAZON UK RETAIL AMAZON.C,04/08/2016,59.78,Books - General,Miscellaneous and Specialty Retail Stores,GPC
Statement 19/07/2016 - 17/08/2016,C&YPS-Non Delegated,AMAZON UK RETAIL AMAZON.C,31/07/2016,11.34,Materials - General,Miscellaneous and Specialty Retail Stores,GPC
Statement 19/07/2016 - 17/08/2016,C&YPS-Non Delegated,AMAZON UK RETAIL AMAZON.C,31/07/2016,11.34,Materials - General,Miscellaneous and Specialty Retail Stores,GPC
Statement 19/07/2016 - 17/08/2016,C&YPS-Non Delegated,AMAZON UK RETAIL AMAZON.C,31/07/2016,11.34,Materials - General,Miscellaneous and Specialty Retail Stores,GPC
Statement 19/07/2016 - 17/08/2016,C&YPS-Non Delegated,AMAZON UK RETAIL AMAZON.C,09/08/2016,45.36,Materials - General,Miscellaneous and Specialty Retail Stores,GPC
Statement 19/07/2016 - 17/08/2016,C&YPS-Non Delegated,AMAZON UK RETAIL AMAZON.C,09/08/2016,-11.34,Materials - General,Miscellaneous and Specialty Retail Stores,GPC
Statement 19/07/2016 - 17/08/2016,C&YPS-Non Delegated,AMAZON UK RETAIL AMAZON.C,11/08/2016,13.30,Materials - General,Miscellaneous and Specialty Retail Stores,GPC
Statement 19/07/2016 - 17/08/2016,C&YPS-Non Delegated,AMAZON UK RETAIL AMAZON.C,16/08/2016,14.74,Materials - General,Miscellaneous and Specialty Retail Stores,GPC
Statement 19/07/2016 - 17/08/2016,C&YPS-Non Delegated,AMAZON UK RETAIL AMAZON.C,15/08/2016,4.25,Other Equipment & Materials - General,Miscellaneous and Specialty Retail Stores,GPC
Statement 19/07/2016 - 17/08/2016,C&YPS-Non Delegated,AMAZON UK RETAIL AMAZON.C,10/08/2016,11.49,Other Expenditure - General,Miscellaneous and Specialty Retail Stores,GPC
Statement 19/07/2016 - 17/08/2016,C&YPS-Non Delegated,AMBASSADOR THEATRE GRO,22/07/2016,845.93,Other Expenditure - General,"Theatrical Products (Except Motion Pictures), Tick",GPC
Statement 19/07/2016 - 17/08/2016,C&YPS-Non Delegated,ANTHONY PETERS MANUFACTU,18/07/2016,30.32,Other Equipment & Materials - General,"Hobby, Toy, and Game Shops",GPC
Statement 19/07/2016 - 17/08/2016,C&YPS-Non Delegated,AO RETAIL LIMITED,10/08/2016,174.16,Other Transfer Payments - Leaving Care Grants,Household Appliance Stores,GPC
Statement 19/07/2016 - 17/08/2016,C&YPS-Non Delegated,ARGOS LTD,26/07/2016,19.99,Materials - General,Discount Stores,GPC
Statement 19/07/2016 - 17/08/2016,C&YPS-Non Delegated,ARGOS LTD,22/07/2016,39.99,Other Expenditure - General,Discount Stores,GPC
Statement 19/07/2016 - 17/08/2016,C&YPS-Non Delegated,ARGOS RETAIL GROUP,20/07/2016,59.96,Materials - General,Discount Stores,GPC
Statement 19/07/2016 - 17/08/2016,C&YPS-Non Delegated,ARGOS RETAIL GROUP,25/07/2016,239.99,Materials - General,Discount Stores,GPC
Statement 19/07/2016 - 17/08/2016,C&YPS-Non Delegated,ARGOS RETAIL GROUP,16/08/2016,29.99,Materials - General,Discount Stores,GPC
Statement 19/07/2016 - 17/08/2016,C&YPS-Non Delegated,ARGOS RETAIL GROUP,02/08/2016,39.99,Other Equipment & Materials - General,Discount Stores,GPC
Statement 19/07/2016 - 17/08/2016,C&YPS-Non Delegated,ARGOS RETAIL GROUP,02/08/2016,33.94,Other Expenditure - General,Discount Stores,GPC
Statement 19/07/2016 - 17/08/2016,C&YPS-Non Delegated,ASDA HOME SHOPPING,08/08/2016,37.42,Other Expenditure - General,"Grocery Stores, Supermarkets",GPC
Statement 19/07/2016 - 17/08/2016,C&YPS-Non Delegated,ASDA STORES,19/07/2016,87.45,Other Equipment & Materials - General,"Grocery Stores, Supermarkets",GPC
Statement 19/07/2016 - 17/08/2016,C&YPS-Non Delegated,ASDA SUPERSTORE,29/07/2016,5.50,Materials - General,"Grocery Stores, Supermarkets",GPC
Statement 19/07/2016 - 17/08/2016,C&YPS-Non Delegated,B & M RETAIL,13/08/2016,5.94,Materials - General,Discount Stores,GPC
Statement 19/07/2016 - 17/08/2016,C&YPS-Non Delegated,B&M RETAIL,08/08/2016,4.37,Other Equipment & Materials - General,Discount Stores,GPC
Statement 19/07/2016 - 17/08/2016,C&YPS-Non Delegated,B&M RETAIL LTD,05/08/2016,53.67,Operational Equipment - General,Discount Stores,GPC
Statement 19/07/2016 - 17/08/2016,C&YPS-Non Delegated,BBCN LEICESTER WIGSTON,01/08/2016,239.65,Other Transfer Payments - Section 23 Grants,Child Care Services,GPC
Statement 19/07/2016 - 17/08/2016,C&YPS-Non Delegated,BLABY DISTRICT COUNCIL,03/08/2016,30.00,Other Expenditure - General,Government Services-Not Elsewhere Classified,GPC
Statement 19/07/2016 - 17/08/2016,C&YPS-Non Delegated,BOOTS BECCLES,26/07/2016,6.38,Other Equipment & Materials - General,"Drug Stores, Pharmacies",GPC
Statement 19/07/2016 - 17/08/2016,C&YPS-Non Delegated,BT BILL PAYMENT 2,12/08/2016,110.80,IT Equipment - Rental,Telecommunication Equipment Including Telephone Sa,GPC
Statement 19/07/2016 - 17/08/2016,C&YPS-Non Delegated,BT BILL PAYMENT 2,20/07/2016,69.50,Telephones - General,Telecommunication Equipment Including Telephone Sa,GPC
Statement 19/07/2016 - 17/08/2016,C&YPS-Non Delegated,BT BILL PAYMENT 2,27/07/2016,55.89,Telephones - General,Telecommunication Equipment Including Telephone Sa,GPC
Statement 19/07/2016 - 17/08/2016,C&YPS-Non Delegated,BT BILL PAYMENT 2,27/07/2016,57.12,Telephones - General,Telecommunication Equipment Including Telephone Sa,GPC
Statement 19/07/2016 - 17/08/2016,C&YPS-Non Delegated,BT BILL PAYMENT 2,09/08/2016,67.12,Telephones - General,Telecommunication Equipment Including Telephone Sa,GPC
Statement 19/07/2016 - 17/08/2016,C&YPS-Non Delegated,BT BILL PAYMENT 2,10/08/2016,54.91,Telephones - General,Telecommunication Equipment Including Telephone Sa,GPC
Statement 19/07/2016 - 17/08/2016,C&YPS-Non Delegated,BURGER KING,01/08/2016,2.68,Subsistence - General,Fast-Food Restaurants (Quick Payment Service Pilot,GPC
Statement 19/07/2016 - 17/08/2016,C&YPS-Non Delegated,BURGER KING,01/08/2016,5.99,Subsistence - General,Fast-Food Restaurants (Quick Payment Service Pilot,GPC
Statement 19/07/2016 - 17/08/2016,C&YPS-Non Delegated,CENTRAL ENG COOP,21/07/2016,5.18,Other Equipment & Materials - General,Department Stores,GPC
Statement 19/07/2016 - 17/08/2016,C&YPS-Non Delegated,CENTRAL ENG COOP,02/08/2016,4.13,Other Equipment & Materials - General,Department Stores,GPC
Statement 19/07/2016 - 17/08/2016,C&YPS-Non Delegated,CENTRAL ENG COOP,25/07/2016,25.00,Public Transport -  Staff - General,Department Stores,GPC
Statement 19/07/2016 - 17/08/2016,C&YPS-Non Delegated,CENTRAL ENG COOP,26/07/2016,20.00,R&M of Vehicles-Non Contract - General,Service Stations (with or without Ancillary Servic,GPC
Statement 19/07/2016 - 17/08/2016,C&YPS-Non Delegated,CINEWORLD,28/07/2016,15.00,Public Transport -  Staff - General,"Theatrical Products (Except Motion Pictures), Tick",GPC
Statement 19/07/2016 - 17/08/2016,C&YPS-Non Delegated,CURRYS ONLINE,29/07/2016,179.99,Materials - General,"RADIO, TELEVISION, AND STEREO STORES (ELECTRONIC STORES)",GPC
Statement 19/07/2016 - 17/08/2016,C&YPS-Non Delegated,CURRYS ONLINE,29/07/2016,178.00,Materials - General,"RADIO, TELEVISION, AND STEREO STORES (ELECTRONIC STORES)",GPC
Statement 19/07/2016 - 17/08/2016,C&YPS-Non Delegated,DMU FINANCE MOBILE,12/08/2016,217.00,Other Transfer Payments - Sector 17- Other,"Colleges, Universities, Professional Schools, and",GPC
Statement 19/07/2016 - 17/08/2016,C&YPS-Non Delegated,DOLCINO,20/07/2016,8.40,Other Expenditure - General,"Eating Places, Restaurants",GPC
Statement 19/07/2016 - 17/08/2016,C&YPS-Non Delegated,DUNELM LTD,21/07/2016,29.98,Other Equipment & Materials - General,"Drapery, Window Coverings, and Upholstery Stores",GPC
Statement 19/07/2016 - 17/08/2016,C&YPS-Non Delegated,DVLA VEHICLE TAX,19/07/2016,167.50,Road Licences - General,Government Services-Not Elsewhere Classified,GPC
Statement 19/07/2016 - 17/08/2016,C&YPS-Non Delegated,DYNAMITE GYM LTD,18/07/2016,60.00,Provisions - General,"Membership Clubs (Sports, Recreation, Athletic), C",GPC
Statement 19/07/2016 - 17/08/2016,C&YPS-Non Delegated,EAST MIDLANDS TRAI,29/07/2016,40.20,Casual/Essential - General,Passenger Railways,GPC
Statement 19/07/2016 - 17/08/2016,C&YPS-Non Delegated,EAST MIDLANDS TRAI,08/08/2016,167.50,Casual/Essential - General,Passenger Railways,GPC
Statement 19/07/2016 - 17/08/2016,C&YPS-Non Delegated,EAST MIDLANDS TRAI,22/07/2016,33.50,Other Equipment & Materials - General,Passenger Railways,GPC
Statement 19/07/2016 - 17/08/2016,C&YPS-Non Delegated,EAST MIDLANDS TRAI,11/08/2016,632.00,Other Expenditure - General,Passenger Railways,GPC
Statement 19/07/2016 - 17/08/2016,C&YPS-Non Delegated,EAST MIDLANDS TRAI,09/08/2016,15.10,Public Transport -  Staff - General,Passenger Railways,GPC
Statement 19/07/2016 - 17/08/2016,C&YPS-Non Delegated,EAST MIDLANDS TRAI,10/08/2016,8.60,Public Transport -  Staff - General,Passenger Railways,GPC
Statement 19/07/2016 - 17/08/2016,C&YPS-Non Delegated,EAST MIDLANDS TRAI,11/08/2016,9.60,Public Transport -  Staff - General,Passenger Railways,GPC
Statement 19/07/2016 - 17/08/2016,C&YPS-Non Delegated,ESPO,04/08/2016,47.20,Stationery - General,Government Services-Not Elsewhere Classified,GPC
Statement 19/07/2016 - 17/08/2016,C&YPS-Non Delegated,EXPERIA,20/07/2016,24.99,Other Equipment & Materials - General,"Hobby, Toy, and Game Shops",GPC
Statement 19/07/2016 - 17/08/2016,C&YPS-Non Delegated,FARSAN EXPRESS LTD,28/07/2016,41.67,Provisions - General,"Grocery Stores, Supermarkets",GPC
Statement 19/07/2016 - 17/08/2016,C&YPS-Non Delegated,FAST KEY SERVICES LIMI,26/07/2016,58.00,Other Equipment & Materials - General,Business Services-Not Elsewhere Classified,GPC
Statement 19/07/2016 - 17/08/2016,C&YPS-Non Delegated,FUN FARM (LINCOLN) LTD,04/08/2016,7.25,Schools Agency staff - Teaching Staff,Child Care Services,GPC
Statement 19/07/2016 - 17/08/2016,C&YPS-Non Delegated,FUSION LOUGHBOROUGH LE,09/08/2016,5.00,Public Transport -  Staff - General,"Membership Clubs (Sports, Recreation, Athletic), C",GPC
Statement 19/07/2016 - 17/08/2016,C&YPS-Non Delegated,FUSION LOUGHBOROUGH LE,09/08/2016,5.00,Public Transport -  Staff - General,"Membership Clubs (Sports, Recreation, Athletic), C",GPC
Statement 19/07/2016 - 17/08/2016,C&YPS-Non Delegated,FUSION LOUGHBOROUGH LE,09/08/2016,8.00,Public Transport -  Staff - General,"Membership Clubs (Sports, Recreation, Athletic), C",GPC
Statement 19/07/2016 - 17/08/2016,C&YPS-Non Delegated,GREEN MOTION LEICESTER,23/07/2016,179.00,Casual/Essential - General,Automobile Rental Agency,GPC
Statement 19/07/2016 - 17/08/2016,C&YPS-Non Delegated,GREEN MOTION LEICESTER,11/08/2016,99.60,Casual/Essential - General,Automobile Rental Agency,GPC
Statement 19/07/2016 - 17/08/2016,C&YPS-Non Delegated,GREEN MOTION LEICESTER,11/08/2016,400.00,Casual/Essential - General,Automobile Rental Agency,GPC
Statement 19/07/2016 - 17/08/2016,C&YPS-Non Delegated,GRO HM PASSPORT OFFICE,02/08/2016,18.50,Other Equipment & Materials - General,Government Services-Not Elsewhere Classified,GPC
Statement 19/07/2016 - 17/08/2016,C&YPS-Non Delegated,HOME BARGAINS,26/07/2016,2.94,Other Equipment & Materials - General,Hardware Stores,GPC
Statement 19/07/2016 - 17/08/2016,C&YPS-Non Delegated,HOME BARGAINS,15/08/2016,9.00,Other Equipment & Materials - General,Hardware Stores,GPC
Statement 19/07/2016 - 17/08/2016,C&YPS-Non Delegated,HOME BARGAINS,06/08/2016,49.04,Other Expenditure - General,Hardware Stores,GPC
Statement 19/07/2016 - 17/08/2016,C&YPS-Non Delegated,HOME BARGAINS,26/07/2016,24.76,Provisions - General,Hardware Stores,GPC
Statement 19/07/2016 - 17/08/2016,C&YPS-Non Delegated,IHASCOCOUK,21/07/2016,180.00,Training Expenses - General,Computer Software Stores,GPC
Statement 19/07/2016 - 17/08/2016,C&YPS-Non Delegated,IRCAS,29/07/2016,14.45,Public Transport -  Staff - General,Fines,GPC
Statement 19/07/2016 - 17/08/2016,C&YPS-Non Delegated,IZ  The Muscle Machine Gy,28/07/2016,41.25,Public Transport -  Staff - General,RECREATION SERVICES--NOT ELSEWHERE CLASSIFIED,GPC
Statement 19/07/2016 - 17/08/2016,C&YPS-Non Delegated,JD SPORTS INTERNET,22/07/2016,23.00,Personal Needs of Clients - General,Sporting Goods Stores,GPC
Statement 19/07/2016 - 17/08/2016,C&YPS-Non Delegated,JD SPORTS INTERNET,22/07/2016,51.49,Personal Needs of Clients - General,Sporting Goods Stores,GPC
Statement 19/07/2016 - 17/08/2016,C&YPS-Non Delegated,KFC,16/08/2016,6.68,Subsistence - General,Fast-Food Restaurants (Quick Payment Service Pilot,GPC
Statement 19/07/2016 - 17/08/2016,C&YPS-Non Delegated,KIRBY & WEST,29/07/2016,43.77,Provisions - General,Dairy Products Stores,GPC
Statement 19/07/2016 - 17/08/2016,C&YPS-Non Delegated,LEIC CITY COUNCIL,21/07/2016,13.00,Other Expenditure - General,Government Services-Not Elsewhere Classified,GPC
Statement 19/07/2016 - 17/08/2016,C&YPS-Non Delegated,LEIC CITY COUNCIL,09/08/2016,13.00,Other Expenditure - General,Government Services-Not Elsewhere Classified,GPC
Statement 19/07/2016 - 17/08/2016,C&YPS-Non Delegated,LEIC CITY COUNCIL,26/07/2016,13.00,Other Transfer Payments - Section 23 Grants,Government Services-Not Elsewhere Classified,GPC
Statement 19/07/2016 - 17/08/2016,C&YPS-Non Delegated,LEIC CITY COUNCIL,26/07/2016,13.00,Other Transfer Payments - Section 23 Grants,Government Services-Not Elsewhere Classified,GPC
Statement 19/07/2016 - 17/08/2016,C&YPS-Non Delegated,LEIC CITY COUNCIL,08/08/2016,23.00,Other Transfer Payments - Section 23 Grants,Government Services-Not Elsewhere Classified,GPC
Statement 19/07/2016 - 17/08/2016,C&YPS-Non Delegated,LEICESTERSHIRE C COUNC,21/07/2016,11.00,Other Expenditure - General,Government Services-Not Elsewhere Classified,GPC
Statement 19/07/2016 - 17/08/2016,C&YPS-Non Delegated,LEICESTERSHIRE C COUNC,21/07/2016,11.00,Other Expenditure - General,Government Services-Not Elsewhere Classified,GPC
Statement 19/07/2016 - 17/08/2016,C&YPS-Non Delegated,LINKEDIN-2898784744,12/08/2016,227.94,Recruitment Advertising - General,Continuity/Subscription Merchants,GPC
Statement 19/07/2016 - 17/08/2016,C&YPS-Non Delegated,MCDONALDS,28/07/2016,0.99,Other Expenditure - General,Fast-Food Restaurants (Quick Payment Service Pilot,GPC
Statement 19/07/2016 - 17/08/2016,C&YPS-Non Delegated,MCDONALDS,01/08/2016,6.37,Other Expenditure - General,Fast-Food Restaurants (Quick Payment Service Pilot,GPC
Statement 19/07/2016 - 17/08/2016,C&YPS-Non Delegated,MCDONALDS,05/08/2016,9.48,Other Expenditure - General,Fast-Food Restaurants (Quick Payment Service Pilot,GPC
Statement 19/07/2016 - 17/08/2016,C&YPS-Non Delegated,MCDONALDS,13/08/2016,3.78,Other Expenditure - General,"Eating Places, Restaurants",GPC
Statement 19/07/2016 - 17/08/2016,C&YPS-Non Delegated,MCDONALDS,13/08/2016,7.58,Other Expenditure - General,"Eating Places, Restaurants",GPC
Statement 19/07/2016 - 17/08/2016,C&YPS-Non Delegated,MCDONALDS,21/07/2016,1.99,Subsistence - General,Fast-Food Restaurants (Quick Payment Service Pilot,GPC
Statement 19/07/2016 - 17/08/2016,C&YPS-Non Delegated,MCDONALDS,08/08/2016,4.39,Subsistence - General,"Eating Places, Restaurants",GPC
Statement 19/07/2016 - 17/08/2016,C&YPS-Non Delegated,MCDONALDS,16/08/2016,4.79,Subsistence - General,"Eating Places, Restaurants",GPC
Statement 19/07/2016 - 17/08/2016,C&YPS-Non Delegated,MCDONALDS,16/08/2016,1.39,Subsistence - General,"Eating Places, Restaurants",GPC
Statement 19/07/2016 - 17/08/2016,C&YPS-Non Delegated,NATIONALEXPRESS.CO,20/07/2016,13.00,Casual/Essential - General,"Bus Lines, Charters, Tour Buses",GPC
Statement 19/07/2016 - 17/08/2016,C&YPS-Non Delegated,NCC INCOME,26/07/2016,61.80,Other Transfer Payments - Section 23 Grants,Government Services-Not Elsewhere Classified,GPC
Statement 19/07/2016 - 17/08/2016,C&YPS-Non Delegated,NCP LIMITED,19/07/2016,3.00,Casual/Essential - General,Automobile Parking Lots and Garages,GPC
Statement 19/07/2016 - 17/08/2016,C&YPS-Non Delegated,NORTH KESTEVEN CEN,04/08/2016,8.00,Public Transport -  Staff - General,"Membership Clubs (Sports, Recreation, Athletic), C",GPC
Statement 19/07/2016 - 17/08/2016,C&YPS-Non Delegated,O2 LEICESTER,08/08/2016,53.00,Communications Equipment - General,Telecommunication Equipment Including Telephone Sa,GPC
Statement 19/07/2016 - 17/08/2016,C&YPS-Non Delegated,OFFICIALRECORDCOUK,18/07/2016,15.98,Schools Agency staff - Teaching Staff,"Management, Consulting and Public Relations Servic",GPC
Statement 19/07/2016 - 17/08/2016,C&YPS-Non Delegated,PARTRIDGE & PRINT,02/08/2016,3.80,Recruitment Advertising - General,Schools and Educational Services-Not Elsewhere Cla,GPC
Statement 19/07/2016 - 17/08/2016,C&YPS-Non Delegated,PAYLINK INTERNET,19/07/2016,11.00,Other Expenditure - General,Government Services-Not Elsewhere Classified,GPC
Statement 19/07/2016 - 17/08/2016,C&YPS-Non Delegated,PAYLINK INTERNET,19/07/2016,11.00,Other Expenditure - General,Government Services-Not Elsewhere Classified,GPC
Statement 19/07/2016 - 17/08/2016,C&YPS-Non Delegated,PAYPAL  THEBEAUTYBO,29/07/2016,7.95,Other Expenditure - General,"Artist Supply Stores, Craft Shops",GPC
Statement 19/07/2016 - 17/08/2016,C&YPS-Non Delegated,POST OFFICE COUNTER,03/08/2016,30.00,Other Equipment & Materials - General,Postage Stamps,GPC
Statement 19/07/2016 - 17/08/2016,C&YPS-Non Delegated,POUNDLAND LTD 1219,03/08/2016,68.10,Materials - General,Discount Stores,GPC
Statement 19/07/2016 - 17/08/2016,C&YPS-Non Delegated,POUNDLAND LTD 1219,15/08/2016,11.05,Materials - General,Discount Stores,GPC
Statement 19/07/2016 - 17/08/2016,C&YPS-Non Delegated,POUNDLAND LTD 1589,10/08/2016,14.00,Materials - General,Discount Stores,GPC
Statement 19/07/2016 - 17/08/2016,C&YPS-Non Delegated,POUNDLAND LTD 1589,19/07/2016,15.25,Other Equipment & Materials - General,Discount Stores,GPC
Statement 19/07/2016 - 17/08/2016,C&YPS-Non Delegated,POUNDSTRETCHER 175,06/08/2016,15.13,Personal Needs of Clients - General,"Drapery, Window Coverings, and Upholstery Stores",GPC
Statement 19/07/2016 - 17/08/2016,C&YPS-Non Delegated,POUNDWORLD RETAIL,13/08/2016,20.00,Materials - General,Discount Stores,GPC
Statement 19/07/2016 - 17/08/2016,C&YPS-Non Delegated,POUNDWORLD RETAIL,11/08/2016,6.00,Other Expenditure - General,Discount Stores,GPC
Statement 19/07/2016 - 17/08/2016,C&YPS-Non Delegated,PRIMARK 648,28/07/2016,49.42,Personal Needs of Clients - General,Family Clothing Stores,GPC
Statement 19/07/2016 - 17/08/2016,C&YPS-Non Delegated,RYMAN,12/08/2016,9.99,Stationery - General,"Stationery, Office, and School Supply Stores",GPC
Statement 19/07/2016 - 17/08/2016,C&YPS-Non Delegated,SAINSBURY'S S/MKT,29/07/2016,25.75,Provisions - General,"Grocery Stores, Supermarkets",GPC
Statement 19/07/2016 - 17/08/2016,C&YPS-Non Delegated,SAINSBURY'S S/MKT,31/07/2016,4.05,Provisions - General,"Grocery Stores, Supermarkets",GPC
Statement 19/07/2016 - 17/08/2016,C&YPS-Non Delegated,SAINSBURYS S/MKTS,12/08/2016,1.10,Materials - General,"Grocery Stores, Supermarkets",GPC
Statement 19/07/2016 - 17/08/2016,C&YPS-Non Delegated,SAINSBURYS S/MKTS,25/07/2016,11.25,Provisions - General,"Grocery Stores, Supermarkets",GPC
Statement 19/07/2016 - 17/08/2016,C&YPS-Non Delegated,SOCCER SHOWCASE LT,06/08/2016,300.00,Public Transport -  Staff - General,"Membership Clubs (Sports, Recreation, Athletic), C",GPC
Statement 19/07/2016 - 17/08/2016,C&YPS-Non Delegated,SPORTSDIRECT 125,09/08/2016,5.99,Materials - General,Sporting Goods Stores,GPC
Statement 19/07/2016 - 17/08/2016,C&YPS-Non Delegated,SPORTSDIRECT 65,09/08/2016,75.97,Materials - General,Sporting Goods Stores,GPC
Statement 19/07/2016 - 17/08/2016,C&YPS-Non Delegated,SUBWAY,10/08/2016,3.79,Subsistence - General,"Eating Places, Restaurants",GPC
Statement 19/07/2016 - 17/08/2016,C&YPS-Non Delegated,TAPES-DIRECT,03/08/2016,12.81,Other Equipment & Materials - General,Business Services-Not Elsewhere Classified,GPC
Statement 19/07/2016 - 17/08/2016,C&YPS-Non Delegated,TESCO STORE 2849,08/08/2016,19.68,Other Expenditure - General,"Grocery Stores, Supermarkets",GPC
Statement 19/07/2016 - 17/08/2016,C&YPS-Non Delegated,TESCO STORE 2849,08/08/2016,8.46,Other Expenditure - General,"Grocery Stores, Supermarkets",GPC
Statement 19/07/2016 - 17/08/2016,C&YPS-Non Delegated,TESCO STORES 2849,10/08/2016,16.49,Other Expenditure - General,"Grocery Stores, Supermarkets",GPC
Statement 19/07/2016 - 17/08/2016,C&YPS-Non Delegated,TESCO STORES 3076,20/07/2016,3.99,Subsistence - General,"Grocery Stores, Supermarkets",GPC
Statement 19/07/2016 - 17/08/2016,C&YPS-Non Delegated,THE RANGE,03/08/2016,42.97,Materials - General,Department Stores,GPC
Statement 19/07/2016 - 17/08/2016,C&YPS-Non Delegated,THE RANGE,18/07/2016,80.17,Other Equipment & Materials - General,Department Stores,GPC
Statement 19/07/2016 - 17/08/2016,C&YPS-Non Delegated,THE RANGE,08/08/2016,71.68,Other Equipment & Materials - General,Department Stores,GPC
Statement 19/07/2016 - 17/08/2016,C&YPS-Non Delegated,THE RANGE,01/08/2016,16.98,Stationery - General,Department Stores,GPC
Statement 19/07/2016 - 17/08/2016,C&YPS-Non Delegated,THE RANGE,01/08/2016,-16.98,Stationery - General,Department Stores,GPC
Statement 19/07/2016 - 17/08/2016,C&YPS-Non Delegated,THE RANGE,01/08/2016,6.00,Stationery - General,Department Stores,GPC
Statement 19/07/2016 - 17/08/2016,C&YPS-Non Delegated,TOM TOON AND DAUGHERS,05/08/2016,112.50,Other Equipment & Materials - General,"Equipment Rental and Leasing Services, Tool Rental",GPC
Statement 19/07/2016 - 17/08/2016,C&YPS-Non Delegated,TRAINLINE,14/08/2016,24.65,Casual/Essential - General,Passenger Railways,GPC
Statement 19/07/2016 - 17/08/2016,C&YPS-Non Delegated,TRAINLINE,22/07/2016,50.08,Public Transport -  Staff - General,Passenger Railways,GPC
Statement 19/07/2016 - 17/08/2016,C&YPS-Non Delegated,TVLICENSING.CO.UK,27/07/2016,145.50,Other Transfer Payments - General,"Management, Consulting and Public Relations Servic",GPC
Statement 19/07/2016 - 17/08/2016,C&YPS-Non Delegated,TVLICENSING.CO.UK,28/07/2016,145.50,Other Transfer Payments - Leaving Care Grants,"Management, Consulting and Public Relations Servic",GPC
Statement 19/07/2016 - 17/08/2016,C&YPS-Non Delegated,TVLICENSING.CO.UK,28/07/2016,145.50,Schools Agency staff - Teaching Staff,"Management, Consulting and Public Relations Servic",GPC
Statement 19/07/2016 - 17/08/2016,C&YPS-Non Delegated,W M MORRISONS,21/07/2016,11.34,Personal Needs of Clients - General,"Grocery Stores, Supermarkets",GPC
Statement 19/07/2016 - 17/08/2016,C&YPS-Non Delegated,W M MORRISONS PLC,16/08/2016,48.84,Materials - General,"Grocery Stores, Supermarkets",GPC
Statement 19/07/2016 - 17/08/2016,C&YPS-Non Delegated,WAITROSE 403,10/08/2016,6.35,Materials - General,"Grocery Stores, Supermarkets",GPC
Statement 19/07/2016 - 17/08/2016,C&YPS-Non Delegated,WELCOME BREAK,24/07/2016,13.94,Other Equipment & Materials - General,"Miscellaneous Food Stores-Convenience Stores, Mark",GPC
Statement 19/07/2016 - 17/08/2016,C&YPS-Non Delegated,WESTMINSTER FORUM,16/08/2016,252.00,Schools Agency staff - Teaching Staff,"Management, Consulting and Public Relations Servic",GPC
Statement 19/07/2016 - 17/08/2016,C&YPS-Non Delegated,WILKO RETAIL LIMIT,19/07/2016,19.99,Materials - General,Household Appliance Stores,GPC
Statement 19/07/2016 - 17/08/2016,C&YPS-Non Delegated,WILKO RETAIL LIMIT,03/08/2016,8.50,Materials - General,Household Appliance Stores,GPC
Statement 19/07/2016 - 17/08/2016,C&YPS-Non Delegated,WILKO RETAIL LIMIT,06/08/2016,16.75,Other Expenditure - General,Household Appliance Stores,GPC
Statement 19/07/2016 - 17/08/2016,C&YPS-Non Delegated,WILKO RETAIL LIMIT,11/08/2016,4.85,Other Expenditure - General,Household Appliance Stores,GPC
Statement 19/07/2016 - 17/08/2016,C&YPS-Non Delegated,WILKO RETAIL LIMIT,10/08/2016,6.04,Provisions - General,Household Appliance Stores,GPC
Statement 19/07/2016 - 17/08/2016,C&YPS-Non Delegated,WILKO RETAIL LIMIT,06/08/2016,9.30,R & M of Buildings - General,Household Appliance Stores,GPC
Statement 19/07/2016 - 17/08/2016,C&YPS-Non Delegated,WM MORRISON 054,21/07/2016,1.50,Materials - General,"Grocery Stores, Supermarkets",GPC
Statement 19/07/2016 - 17/08/2016,C&YPS-Non Delegated,WM MORRISON 054,09/08/2016,26.02,Provisions - General,"Grocery Stores, Supermarkets",GPC
Statement 19/07/2016 - 17/08/2016,C&YPS-Non Delegated,WP-STAMPS DIRECT L,11/08/2016,12.20,General Equipment - General,"Stationery, Office, and School Supply Stores",GPC
Statement 19/07/2016 - 17/08/2016,C&YPS-Non Delegated,WP-WARWICKSHIRE CO,11/08/2016,10.64,Other Expenditure - General,Government Services-Not Elsewhere Classified,GPC
Statement 19/07/2016 - 17/08/2016,C&YPS-Non Delegated,WWW.ARCHWAYCARDS.COM,15/08/2016,158.68,Materials - General,"Gift, Card, Novelty, and Souvenir Shops",GPC
Statement 19/07/2016 - 17/08/2016,C&YPS-Non Delegated,WWW.BAKERROSS.CO.UK,15/08/2016,13.47,Other Equipment & Materials - General,"Artist Supply Stores, Craft Shops",GPC
Statement 19/07/2016 - 17/08/2016,C&YPS-Non Delegated,WWW.C2UOFFICE.CO.U,16/08/2016,15.90,Materials - General,"Stationery, Office, and School Supply Stores",GPC
Statement 19/07/2016 - 17/08/2016,C&YPS-Non Delegated,WWW.C2UOFFICE.CO.U,16/08/2016,83.34,Stationery - General,"Stationery, Office, and School Supply Stores",GPC
Statement 19/07/2016 - 17/08/2016,C&YPS-Non Delegated,WWW.COOPELECTRICAL,28/07/2016,164.98,Materials - General,Household Appliance Stores,GPC
Statement 19/07/2016 - 17/08/2016,C&YPS-Non Delegated,WWW.DERBY.GOV.UK,21/07/2016,11.20,Other Expenditure - General,Government Services-Not Elsewhere Classified,GPC
Statement 19/07/2016 - 17/08/2016,C&YPS-Non Delegated,WWW.EDENRED.CO.UK,03/08/2016,88.65,Other Expenditure - General,Business Services-Not Elsewhere Classified,GPC
Statement 19/07/2016 - 17/08/2016,C&YPS-Non Delegated,WWW.EDENRED.CO.UK,09/08/2016,59.10,Other Expenditure - General,Business Services-Not Elsewhere Classified,GPC
Statement 19/07/2016 - 17/08/2016,C&YPS-Non Delegated,WWW.GEAR4MUSIC.COM,25/07/2016,184.99,Materials - General,"Music Stores-Musical Instruments, Pianos, Sheet Mu",GPC
Statement 19/07/2016 - 17/08/2016,C&YPS-Non Delegated,WWW.MILKANDMORE.CO.UK,22/07/2016,14.04,Provisions - General,Continuity/Subscription Merchants,GPC
Statement 19/07/2016 - 17/08/2016,C&YPS-Non Delegated,WWW.MILKANDMORE.CO.UK,01/08/2016,11.75,Provisions - General,Continuity/Subscription Merchants,GPC
Statement 19/07/2016 - 17/08/2016,C&YPS-Non Delegated,WWW.MILKANDMORE.CO.UK,01/08/2016,12.48,Provisions - General,Continuity/Subscription Merchants,GPC
Statement 19/07/2016 - 17/08/2016,C&YPS-Non Delegated,WWW.MILKANDMORE.CO.UK,01/08/2016,4.68,Provisions - General,Continuity/Subscription Merchants,GPC
Statement 19/07/2016 - 17/08/2016,C&YPS-Non Delegated,WWW.PLANETBOUNCETR,02/08/2016,30.00,Personal Needs of Clients - Holidays & Outings,"Bands, Orchestras, Entertainers",GPC
Statement 19/07/2016 - 17/08/2016,C&YPS-Non Delegated,WWW.POSTURITE.CO.UK,16/08/2016,53.62,Other Equipment & Materials - General,Commercial Furniture,GPC
Statement 19/07/2016 - 17/08/2016,C&YPS-Non Delegated,WWW.POSTURITE.CO.UK,10/08/2016,46.38,Other Expenditure - General,Commercial Furniture,GPC
Statement 19/07/2016 - 17/08/2016,C&YPS-Non Delegated,WWW.ROYALMAIL.COM,27/07/2016,128.00,Postal Services - General,Postage Stamps,GPC
Statement 19/07/2016 - 17/08/2016,C&YPS-Non Delegated,WWW.THEWORKS.CO.UK,28/07/2016,100.00,Stationery - General,Discount Stores,GPC
Statement 19/07/2016 - 17/08/2016,C&YPS-Non Delegated,WWW.THEWORKS.CO.UK,02/08/2016,35.00,Stationery - General,Discount Stores,GPC
Statement 19/07/2016 - 17/08/2016,C&YPS-Non Delegated,WWW.THEWORKS.CO.UK,09/08/2016,-10.00,Stationery - General,Discount Stores,GPC
Statement 19/07/2016 - 17/08/2016,C&YPS-Non Delegated,WWW.UKPOS.COM,02/08/2016,128.64,Stationery - General,"Stationery, Office, and School Supply Stores",GPC
Statement 19/07/2016 - 17/08/2016,Capital,CRATE HIRE UK LTD,10/08/2016,315.76,I.T. Equipment - Expenditure,"Motor Freight Carriers, and Trucking",GPC
Statement 19/07/2016 - 17/08/2016,Capital,EUROFFICE.CO.UK,16/08/2016,79.90,I.T. Equipment - Expenditure,"Stationery, Office, and School Supply Stores",GPC
Statement 19/07/2016 - 17/08/2016,Central Items,FOREIGN EXCHANGE FEE,04/08/2016,2.47,Investment Admin Expenses - Investments Admin Expens,Misc-Unknown,GPC
Statement 19/07/2016 - 17/08/2016,Central Items,GMEI UTILITY REG. FEE,03/08/2016,89.70,Investment Admin Expenses - Investments Admin Expens,Business Services-Not Elsewhere Classified,GPC
Statement 19/07/2016 - 17/08/2016,Chief Executive,Amazon UK Marketplace,15/08/2016,3.49,Books - General,Book Stores,GPC
Statement 19/07/2016 - 17/08/2016,Chief Executive,Amazon UK Marketplace,18/07/2016,58.30,Materials - General,Miscellaneous and Specialty Retail Stores,GPC
Statement 19/07/2016 - 17/08/2016,Chief Executive,Amazon UK Marketplace,08/08/2016,15.97,Materials - General,Miscellaneous and Specialty Retail Stores,GPC
Statement 19/07/2016 - 17/08/2016,Chief Executive,Amazon UK Marketplace,13/08/2016,22.99,Materials - General,Miscellaneous and Specialty Retail Stores,GPC
Statement 19/07/2016 - 17/08/2016,Chief Executive,Amazon UK Marketplace,21/07/2016,12.98,Operational Equipment - General,Miscellaneous and Specialty Retail Stores,GPC
Statement 19/07/2016 - 17/08/2016,Chief Executive,Amazon UK Marketplace,05/08/2016,207.92,Stationery - General,Miscellaneous and Specialty Retail Stores,GPC
Statement 19/07/2016 - 17/08/2016,Chief Executive,Amazon UK Retail,28/07/2016,12.95,Other Expenditure - General,Direct Marketers - Other,GPC
Statement 19/07/2016 - 17/08/2016,Chief Executive,AMAZON UK RETAIL AMAZON.C,18/07/2016,49.20,Materials - General,Miscellaneous and Specialty Retail Stores,GPC
Statement 19/07/2016 - 17/08/2016,Chief Executive,AMAZON UK RETAIL AMAZON.C,12/08/2016,21.81,Stationery - General,Miscellaneous and Specialty Retail Stores,GPC
Statement 19/07/2016 - 17/08/2016,Chief Executive,CHARNWOOD BOROUGH COUNCI,22/07/2016,2.20,Casual/Essential - General,Automobile Parking Lots and Garages,GPC
Statement 19/07/2016 - 17/08/2016,Chief Executive,CHARNWOOD BOROUGH COUNCI,02/08/2016,3.20,Casual/Essential - General,Automobile Parking Lots and Garages,GPC
Statement 19/07/2016 - 17/08/2016,Chief Executive,CHARNWOOD BOROUGH COUNCI,15/08/2016,1.60,Casual/Essential - General,Automobile Parking Lots and Garages,GPC
Statement 19/07/2016 - 17/08/2016,Chief Executive,DISCLOSURE SCOT,20/07/2016,25.00,Other Expenditure - General,Government Services-Not Elsewhere Classified,GPC
Statement 19/07/2016 - 17/08/2016,Chief Executive,DNH GODADDY.COM EUROPE,18/07/2016,31.97,Communications Equipment - General,Computer Network/Information Services,GPC
Statement 19/07/2016 - 17/08/2016,Chief Executive,DON RUFFLES LTD,05/08/2016,42.27,Stationery - General,"Stationery, Office, and School Supply Stores",GPC
Statement 19/07/2016 - 17/08/2016,Chief Executive,EAST MIDLANDS LEICESTER,25/07/2016,7.50,Casual/Essential - General,Automobile Parking Lots and Garages,GPC
Statement 19/07/2016 - 17/08/2016,Chief Executive,EAST MIDLANDS LEICESTER,26/07/2016,13.50,Casual/Essential - General,Automobile Parking Lots and Garages,GPC
Statement 19/07/2016 - 17/08/2016,Chief Executive,ENVATOMARKET29532960,18/07/2016,55.75,Other Expenditure - General,#N/A,GPC
Statement 19/07/2016 - 17/08/2016,Chief Executive,FOREIGN EXCHANGE FEE,19/07/2016,1.53,Other Expenditure - General,Misc-Unknown,GPC
Statement 19/07/2016 - 17/08/2016,Chief Executive,GOTOCITRIX.COM,08/08/2016,29.00,IT Equipment - Licences,Continuity/Subscription Merchants,GPC
Statement 19/07/2016 - 17/08/2016,Chief Executive,INTU PARKING DERBY,21/07/2016,5.00,Casual/Essential - General,Automobile Parking Lots and Garages,GPC
Statement 19/07/2016 - 17/08/2016,Chief Executive,NCP LIMITED,01/08/2016,12.00,Casual/Essential - General,Automobile Parking Lots and Garages,GPC
Statement 19/07/2016 - 17/08/2016,Chief Executive,NCP LIMITED,11/08/2016,8.33,Casual/Essential - General,Automobile Parking Lots and Garages,GPC
Statement 19/07/2016 - 17/08/2016,Chief Executive,PAYPAL  ADAMAPPLE,28/07/2016,48.80,Schools Agency staff - Teaching Staff,Professional Services-Not Elsewhere Classified,GPC
Statement 19/07/2016 - 17/08/2016,Chief Executive,PAYPAL  ADAMAPPLE,15/08/2016,65.05,Schools Agency staff - Teaching Staff,Professional Services-Not Elsewhere Classified,GPC
Statement 19/07/2016 - 17/08/2016,Chief Executive,PAYPAL  EASYMORPH,11/08/2016,430.02,Other Expenditure - General,Computer Software Stores,GPC
Statement 19/07/2016 - 17/08/2016,Chief Executive,ROYAL MAIL,08/08/2016,55.00,Postal Services - General,Postage Stamps,GPC
Statement 19/07/2016 - 17/08/2016,Chief Executive,ROYAL MAIL,16/08/2016,238.00,Postal Services - General,Postage Stamps,GPC
Statement 19/07/2016 - 17/08/2016,Chief Executive,WESTMINSTER FORUM,25/07/2016,210.00,Training Expenses - General,"Management, Consulting and Public Relations Servic",GPC
Statement 19/07/2016 - 17/08/2016,Chief Executive,WWW.NEOPOST.CO.UK,27/07/2016,612.00,Postal Services - General,"Stationary, Office Supplies, Printing and Writing",GPC
Statement 19/07/2016 - 17/08/2016,Corporate Resources,123 HIRE LTD,22/07/2016,750.00,Other Expenditure - General,"Equipment Rental and Leasing Services, Tool Rental",GPC
Statement 19/07/2016 - 17/08/2016,Corporate Resources,ALDI,21/07/2016,13.15,Training Expenses - General,"Grocery Stores, Supermarkets",GPC
Statement 19/07/2016 - 17/08/2016,Corporate Resources,Amazon Svcs Europe SAR,16/08/2016,6.35,Other Expenditure - General,Book Stores,GPC
Statement 19/07/2016 - 17/08/2016,Corporate Resources,Amazon Svcs Europe SAR,18/07/2016,13.74,Stationery - General,Book Stores,GPC
Statement 19/07/2016 - 17/08/2016,Corporate Resources,Amazon UK Marketplace,08/08/2016,5.50,Materials - General,Miscellaneous and Specialty Retail Stores,GPC
Statement 19/07/2016 - 17/08/2016,Corporate Resources,Amazon UK Marketplace,11/08/2016,25.97,Materials - General,Miscellaneous and Specialty Retail Stores,GPC
Statement 19/07/2016 - 17/08/2016,Corporate Resources,Amazon UK Marketplace,11/08/2016,13.10,Operational Equipment - General,Miscellaneous and Specialty Retail Stores,GPC
Statement 19/07/2016 - 17/08/2016,Corporate Resources,Amazon UK Marketplace,09/08/2016,2.05,R & M Mechanical - Mechanical Repairs,Miscellaneous and Specialty Retail Stores,GPC
Statement 19/07/2016 - 17/08/2016,Corporate Resources,Amazon UK Marketplace,20/07/2016,34.56,Stationery - General,Miscellaneous and Specialty Retail Stores,GPC
Statement 19/07/2016 - 17/08/2016,Corporate Resources,Amazon UK Marketplace,21/07/2016,16.48,Stationery - General,Book Stores,GPC
Statement 19/07/2016 - 17/08/2016,Corporate Resources,Amazon UK Marketplace,15/08/2016,6.74,Subsistence - General,Book Stores,GPC
Statement 19/07/2016 - 17/08/2016,Corporate Resources,Amazon UK Marketplace,22/07/2016,28.24,Training Expenses - General,Book Stores,GPC
Statement 19/07/2016 - 17/08/2016,Corporate Resources,Amazon UK Marketplace,28/07/2016,24.74,Training Expenses - General,Book Stores,GPC
Statement 19/07/2016 - 17/08/2016,Corporate Resources,Amazon UK Marketplace,03/08/2016,31.73,Training Expenses - General,Miscellaneous and Specialty Retail Stores,GPC
Statement 19/07/2016 - 17/08/2016,Corporate Resources,Amazon UK Marketplace,09/08/2016,32.93,Training Expenses - General,Book Stores,GPC
Statement 19/07/2016 - 17/08/2016,Corporate Resources,Amazon UK Retail,09/08/2016,23.73,Catering Equipment - General,Direct Marketers - Other,GPC
Statement 19/07/2016 - 17/08/2016,Corporate Resources,Amazon UK Retail,19/07/2016,23.53,IT Equipment - General,Direct Marketers - Other,GPC
Statement 19/07/2016 - 17/08/2016,Corporate Resources,Amazon UK Retail,04/08/2016,43.98,Other Expenditure - General,Direct Marketers - Other,GPC
Statement 19/07/2016 - 17/08/2016,Corporate Resources,Amazon UK Retail,20/07/2016,11.59,Stationery - General,Direct Marketers - Other,GPC
Statement 19/07/2016 - 17/08/2016,Corporate Resources,Amazon UK Retail,22/07/2016,21.30,Training Expenses - General,Direct Marketers - Other,GPC
Statement 19/07/2016 - 17/08/2016,Corporate Resources,AMAZON UK RETAIL AMAZON.C,22/07/2016,10.56,Other Expenditure - General,Miscellaneous and Specialty Retail Stores,GPC
Statement 19/07/2016 - 17/08/2016,Corporate Resources,ARBORICULTURAL ASSOCIA,01/08/2016,110.00,Other Expenditure - General,Charitable and Social Service Organizations,GPC
Statement 19/07/2016 - 17/08/2016,Corporate Resources,ARGOS LTD,27/07/2016,17.99,Other Expenditure - General,Discount Stores,GPC
Statement 19/07/2016 - 17/08/2016,Corporate Resources,ASDA STORES 4477,27/07/2016,3.01,Materials - General,"Grocery Stores, Supermarkets",GPC
Statement 19/07/2016 - 17/08/2016,Corporate Resources,ASDA STORES 4477,03/08/2016,0.95,Materials - General,"Grocery Stores, Supermarkets",GPC
Statement 19/07/2016 - 17/08/2016,Corporate Resources,ASDA STORES 4477,15/08/2016,8.25,Materials - General,"Grocery Stores, Supermarkets",GPC
Statement 19/07/2016 - 17/08/2016,Corporate Resources,ASDA STORES 4477,19/07/2016,10.30,Other Expenditure - General,"Grocery Stores, Supermarkets",GPC
Statement 19/07/2016 - 17/08/2016,Corporate Resources,ASDA STORES 4477,02/08/2016,11.35,Other Expenditure - General,"Grocery Stores, Supermarkets",GPC
Statement 19/07/2016 - 17/08/2016,Corporate Resources,ASDA STORES 4477,03/08/2016,5.75,Other Expenditure - General,"Grocery Stores, Supermarkets",GPC
Statement 19/07/2016 - 17/08/2016,Corporate Resources,AUTOGRILL LEON KINGSCROSS,03/08/2016,6.95,Subsistence - General,"Eating Places, Restaurants",GPC
Statement 19/07/2016 - 17/08/2016,Corporate Resources,BHAGAWATHI STORE LIMIT,22/07/2016,10.00,Materials - General,"Package Stores, Beer, Wine, Liquor",GPC
Statement 19/07/2016 - 17/08/2016,Corporate Resources,BT PAY BY PHONE,19/07/2016,137.25,Telephones - General,Telecommunication Service Including Local and Long,GPC
Statement 19/07/2016 - 17/08/2016,Corporate Resources,BTO SERVICES LTD,26/07/2016,103.00,Other Services - General,Charitable and Social Service Organizations,GPC
Statement 19/07/2016 - 17/08/2016,Corporate Resources,CARLUCCIOS LTD,02/08/2016,13.45,Subsistence - General,"Eating Places, Restaurants",GPC
Statement 19/07/2016 - 17/08/2016,Corporate Resources,CENTRAL ENG COOP,13/08/2016,16.07,Other Expenditure - General,Department Stores,GPC
Statement 19/07/2016 - 17/08/2016,Corporate Resources,CENTRAL ENG COOP,15/08/2016,3.68,Other Expenditure - General,Department Stores,GPC
Statement 19/07/2016 - 17/08/2016,Corporate Resources,CHARNWOOD BC MOTO,11/08/2016,53.03,Other Services - General,Government Services-Not Elsewhere Classified,GPC
Statement 19/07/2016 - 17/08/2016,Corporate Resources,CITB,22/07/2016,25.00,Training Expenses - General,"Colleges, Universities, Professional Schools, and",GPC
Statement 19/07/2016 - 17/08/2016,Corporate Resources,COOKS FARM SHOP,15/08/2016,12.00,Materials - General,"Lawn and Garden Supply Stores, Nurseries",GPC
Statement 19/07/2016 - 17/08/2016,Corporate Resources,COOKS FARM SHOP,29/07/2016,21.20,Other Expenditure - Public Enquiry fees,"Lawn and Garden Supply Stores, Nurseries",GPC
Statement 19/07/2016 - 17/08/2016,Corporate Resources,CO-OP GROUP 070412,26/07/2016,21.93,Other Expenditure - General,"Grocery Stores, Supermarkets",GPC
Statement 19/07/2016 - 17/08/2016,Corporate Resources,CO-OP LATE SHOP,18/07/2016,3.39,Materials - General,"Grocery Stores, Supermarkets",GPC
Statement 19/07/2016 - 17/08/2016,Corporate Resources,CO-OP LATE SHOP,01/08/2016,18.53,Other Expenditure - General,"Grocery Stores, Supermarkets",GPC
Statement 19/07/2016 - 17/08/2016,Corporate Resources,CROSS COUNTRY CC,11/08/2016,46.50,Training Expenses - General,Passenger Railways,GPC
Statement 19/07/2016 - 17/08/2016,Corporate Resources,DAMAS CAFE,21/07/2016,15.00,Subsistence - General,"Eating Places, Restaurants",GPC
Statement 19/07/2016 - 17/08/2016,Corporate Resources,DESTINET LTD,29/07/2016,174.00,Publicity/Marketing - General,Advertising Services,GPC
Statement 19/07/2016 - 17/08/2016,Corporate Resources,EAST MIDLAND TRAINS,25/07/2016,7.00,Public Transport -  Staff - General,Automobile Parking Lots and Garages,GPC
Statement 19/07/2016 - 17/08/2016,Corporate Resources,EAST MIDLANDS LEICESTER,27/07/2016,13.50,Public Transport -  Staff - General,Automobile Parking Lots and Garages,GPC
Statement 19/07/2016 - 17/08/2016,Corporate Resources,EAST MIDLANDS MARKET HAR,18/07/2016,11.00,Public Transport -  Staff - General,Automobile Parking Lots and Garages,GPC
Statement 19/07/2016 - 17/08/2016,Corporate Resources,EAST MIDLANDS MARKET HAR,21/07/2016,11.00,Public Transport -  Staff - General,Automobile Parking Lots and Garages,GPC
Statement 19/07/2016 - 17/08/2016,Corporate Resources,EAST MIDLANDS MARKET HAR,22/07/2016,22.00,Public Transport -  Staff - General,Automobile Parking Lots and Garages,GPC
Statement 19/07/2016 - 17/08/2016,Corporate Resources,EAST MIDLANDS MARKET HAR,26/07/2016,13.00,Public Transport -  Staff - General,Automobile Parking Lots and Garages,GPC
Statement 19/07/2016 - 17/08/2016,Corporate Resources,EAST MIDLANDS MARKET HAR,29/07/2016,11.00,Public Transport -  Staff - General,Automobile Parking Lots and Garages,GPC
Statement 19/07/2016 - 17/08/2016,Corporate Resources,EAST MIDLANDS MARKET HAR,04/08/2016,11.00,Public Transport -  Staff - General,Automobile Parking Lots and Garages,GPC
Statement 19/07/2016 - 17/08/2016,Corporate Resources,EAST MIDLANDS MARKET HAR,10/08/2016,11.00,Public Transport -  Staff - General,Automobile Parking Lots and Garages,GPC
Statement 19/07/2016 - 17/08/2016,Corporate Resources,EASTMIDLANDSTRAINS,15/08/2016,60.42,Training Expenses - General,Passenger Railways,GPC
Statement 19/07/2016 - 17/08/2016,Corporate Resources,EB  ELECTRICAL PRODUCT,19/07/2016,105.25,Training Expenses - General,Business Services-Not Elsewhere Classified,GPC
Statement 19/07/2016 - 17/08/2016,Corporate Resources,EB  ELECTRICAL PRODUCT,20/07/2016,105.25,Training Expenses - General,Business Services-Not Elsewhere Classified,GPC
Statement 19/07/2016 - 17/08/2016,Corporate Resources,ECLIPSE NETWORKING LIM,22/07/2016,327.22,IT Equipment - General,Continuity/Subscription Merchants,GPC
Statement 19/07/2016 - 17/08/2016,Corporate Resources,ELIOR@SOUTHWARK CATHED,20/07/2016,8.00,Public Transport -  Staff - General,Caterers,GPC
Statement 19/07/2016 - 17/08/2016,Corporate Resources,ESPO,09/08/2016,35.50,Other Expenditure - General,Government Services-Not Elsewhere Classified,GPC
Statement 19/07/2016 - 17/08/2016,Corporate Resources,FACEBK D3YV8A6TE2,31/07/2016,107.46,Publicity/Marketing - General,Advertising Services,GPC
Statement 19/07/2016 - 17/08/2016,Corporate Resources,FACEBK UAG9T92UE2,26/07/2016,200.02,Publicity/Marketing - General,Advertising Services,GPC
Statement 19/07/2016 - 17/08/2016,Corporate Resources,FOREIGN EXCHANGE FEE,25/07/2016,3.15,Publicity/Marketing - General,Misc-Unknown,GPC
Statement 19/07/2016 - 17/08/2016,Corporate Resources,FOREIGN EXCHANGE FEE,12/08/2016,1.25,Subscriptions - General,Misc-Unknown,GPC
Statement 19/07/2016 - 17/08/2016,Corporate Resources,FRIENDS HOUSE,16/08/2016,5.50,Subsistence - General,Religious Organizations,GPC
Statement 19/07/2016 - 17/08/2016,Corporate Resources,FRIENDS HOUSE,16/08/2016,4.60,Subsistence - General,Religious Organizations,GPC
Statement 19/07/2016 - 17/08/2016,Corporate Resources,FRIENDS HOUSE,16/08/2016,4.40,Subsistence - General,Religious Organizations,GPC
Statement 19/07/2016 - 17/08/2016,Corporate Resources,GANTTIC LLC,11/08/2016,45.62,Subscriptions - General,Miscellaneous and Specialty Retail Stores,GPC
Statement 19/07/2016 - 17/08/2016,Corporate Resources,GEORGE WALKER,25/07/2016,118.90,Other Services - General,"Building Materials, Lumber Stores",GPC
Statement 19/07/2016 - 17/08/2016,Corporate Resources,GO OUTDOORS,21/07/2016,116.66,Other Services - General,Men's And Women's Clothing Stores,GPC
Statement 19/07/2016 - 17/08/2016,Corporate Resources,GO OUTDOORS,21/07/2016,116.66,Other Services - General,Men's And Women's Clothing Stores,GPC
Statement 19/07/2016 - 17/08/2016,Corporate Resources,HALFORDS 0428,05/08/2016,7.50,Other Services - General,Bicycle Shops-Sales and Service,GPC
Statement 19/07/2016 - 17/08/2016,Corporate Resources,HARLOW BROS LTD,27/07/2016,47.60,Other Services - General,"Building Materials, Lumber Stores",GPC
Statement 19/07/2016 - 17/08/2016,Corporate Resources,HARLOW BROS LTD,08/08/2016,62.17,Other Services - General,"Building Materials, Lumber Stores",GPC
Statement 19/07/2016 - 17/08/2016,Corporate Resources,HIGGOTTS,15/08/2016,7.96,Petrol/Oil/Tyres/Spares - General,Landscaping and Horticultural Services,GPC
Statement 19/07/2016 - 17/08/2016,Corporate Resources,HOOTSUITE MEDIA INC.,24/07/2016,114.64,Publicity/Marketing - General,Business Services-Not Elsewhere Classified,GPC
Statement 19/07/2016 - 17/08/2016,Corporate Resources,HP INC UK LIMITED,27/07/2016,25.61,Stationery - General,"Computers, Computer Peripheral Equipment, Software",GPC
Statement 19/07/2016 - 17/08/2016,Corporate Resources,INDIGO PARK SOLUTI,10/08/2016,7.70,Public Transport -  Staff - General,Automobile Parking Lots and Garages,GPC
Statement 19/07/2016 - 17/08/2016,Corporate Resources,INDIGO PARK SOLUTI,16/08/2016,7.70,Subsistence - General,Automobile Parking Lots and Garages,GPC
Statement 19/07/2016 - 17/08/2016,Corporate Resources,LCC CATERING SERVICES,02/08/2016,4.94,Subsistence - General,Government Services-Not Elsewhere Classified,GPC
Statement 19/07/2016 - 17/08/2016,Corporate Resources,LINKEDIN-286 0326784,18/07/2016,227.94,Other Expenditure - General,Continuity/Subscription Merchants,GPC
Statement 19/07/2016 - 17/08/2016,Corporate Resources,LINKEDIN-2861655794,19/07/2016,227.94,Other Expenditure - General,Continuity/Subscription Merchants,GPC
Statement 19/07/2016 - 17/08/2016,Corporate Resources,LINKEDIN-2872795544,26/07/2016,113.82,Other Expenditure - General,Continuity/Subscription Merchants,GPC
Statement 19/07/2016 - 17/08/2016,Corporate Resources,LINKEDIN-2879649134,30/07/2016,113.59,Other Expenditure - General,Continuity/Subscription Merchants,GPC
Statement 19/07/2016 - 17/08/2016,Corporate Resources,LINKEDIN-2881568644,01/08/2016,46.44,Publicity/Marketing - General,Continuity/Subscription Merchants,GPC
Statement 19/07/2016 - 17/08/2016,Corporate Resources,LINKEDIN-2888689234,05/08/2016,95.51,Publicity/Marketing - General,Continuity/Subscription Merchants,GPC
Statement 19/07/2016 - 17/08/2016,Corporate Resources,LINKEDIN-289 3755184,09/08/2016,227.94,Other Expenditure - General,Continuity/Subscription Merchants,GPC
Statement 19/07/2016 - 17/08/2016,Corporate Resources,LINKEDIN-2895404084,10/08/2016,227.94,Other Expenditure - General,Continuity/Subscription Merchants,GPC
Statement 19/07/2016 - 17/08/2016,Corporate Resources,LINKEDIN-290 4090964,16/08/2016,227.94,Other Expenditure - General,Continuity/Subscription Merchants,GPC
Statement 19/07/2016 - 17/08/2016,Corporate Resources,LINKEDIN-2902354244,15/08/2016,227.94,Recruitment Advertising - General,Continuity/Subscription Merchants,GPC
Statement 19/07/2016 - 17/08/2016,Corporate Resources,LONDON & SOUTH EAS,03/08/2016,10.00,Public Transport -  Staff - General,Passenger Railways,GPC
Statement 19/07/2016 - 17/08/2016,Corporate Resources,LUL TICKET MACHINE,18/07/2016,50.00,Casual/Essential - General,Passenger Railways,GPC
Statement 19/07/2016 - 17/08/2016,Corporate Resources,LUL TICKET MACHINE,20/07/2016,20.00,Public Transport -  Staff - General,Passenger Railways,GPC
Statement 19/07/2016 - 17/08/2016,Corporate Resources,M M LEGGETT VET. SURGE,26/07/2016,75.00,Other Expenditure - Public Enquiry fees,Veterinary Services,GPC
Statement 19/07/2016 - 17/08/2016,Corporate Resources,M M LEGGETT VET. SURGE,26/07/2016,47.96,Other Expenditure - Public Enquiry fees,Veterinary Services,GPC
Statement 19/07/2016 - 17/08/2016,Corporate Resources,M&S SIMPLY FOOD - SSP,20/07/2016,7.40,Subsistence - General,"Miscellaneous Food Stores-Convenience Stores, Mark",GPC
Statement 19/07/2016 - 17/08/2016,Corporate Resources,MAKRO SELF SERVICE LEICES,28/07/2016,7.98,Materials - General,Wholesale Clubs,GPC
Statement 19/07/2016 - 17/08/2016,Corporate Resources,MALTHURST RETAIL L,14/08/2016,2.00,R&M of Vehicles-Non Contract - General,Service Stations (with or without Ancillary Servic,GPC
Statement 19/07/2016 - 17/08/2016,Corporate Resources,MAXWELLAMEN,16/08/2016,96.75,Materials - General,"Lawn and Garden Supply Stores, Nurseries",GPC
Statement 19/07/2016 - 17/08/2016,Corporate Resources,MEDIA & COMMUNICATIONS L,27/07/2016,222.00,Communications Equipment - General,Telecommunication Equipment Including Telephone Sa,GPC
Statement 19/07/2016 - 17/08/2016,Corporate Resources,METROLINK TVM,19/07/2016,3.60,Public Transport -  Staff - General,"Bus Lines, Charters, Tour Buses",GPC
Statement 19/07/2016 - 17/08/2016,Corporate Resources,METROLINK TVM,20/07/2016,3.60,Public Transport -  Staff - General,"Bus Lines, Charters, Tour Buses",GPC
Statement 19/07/2016 - 17/08/2016,Corporate Resources,METROLINK TVM,21/07/2016,3.10,Public Transport -  Staff - General,"Bus Lines, Charters, Tour Buses",GPC
Statement 19/07/2016 - 17/08/2016,Corporate Resources,METROLINK TVM,25/07/2016,3.60,Public Transport -  Staff - General,"Bus Lines, Charters, Tour Buses",GPC
Statement 19/07/2016 - 17/08/2016,Corporate Resources,METROLINK TVM,02/08/2016,3.60,Public Transport -  Staff - General,"Bus Lines, Charters, Tour Buses",GPC
Statement 19/07/2016 - 17/08/2016,Corporate Resources,METROLINK TVM,04/08/2016,5.70,Public Transport -  Staff - General,"Bus Lines, Charters, Tour Buses",GPC
Statement 19/07/2016 - 17/08/2016,Corporate Resources,METROLINK TVM,09/08/2016,4.00,Public Transport -  Staff - General,"Bus Lines, Charters, Tour Buses",GPC
Statement 19/07/2016 - 17/08/2016,Corporate Resources,METROLINK TVM,11/08/2016,1.70,Public Transport -  Staff - General,"Bus Lines, Charters, Tour Buses",GPC
Statement 19/07/2016 - 17/08/2016,Corporate Resources,METROLINK TVM,11/08/2016,3.80,Public Transport -  Staff - General,"Bus Lines, Charters, Tour Buses",GPC
Statement 19/07/2016 - 17/08/2016,Corporate Resources,METROLINK TVM,16/08/2016,5.70,Public Transport -  Staff - General,"Bus Lines, Charters, Tour Buses",GPC
Statement 19/07/2016 - 17/08/2016,Corporate Resources,MOLE COUNTRY STORES,05/08/2016,63.65,Other Expenditure - Public Enquiry fees,Agricultural Cooperatives,GPC
Statement 19/07/2016 - 17/08/2016,Corporate Resources,MONSTER UK,21/07/2016,228.00,Schools Agency staff - Teaching Staff,Information Retrieval Services,GPC
Statement 19/07/2016 - 17/08/2016,Corporate Resources,MORGANS LOCKSMITHS,19/07/2016,20.50,Other Services - General,"Shoe Repair Shops, Shoe Shine Parlors, Hat Cleanin",GPC
Statement 19/07/2016 - 17/08/2016,Corporate Resources,NASUWT HILLSCOURT E,21/07/2016,47.50,Training Expenses - General,"Lodging-Hotels, Motels, Resorts",GPC
Statement 19/07/2016 - 17/08/2016,Corporate Resources,NUDO SUSHI BOX,26/07/2016,15.99,Subsistence - General,Fast-Food Restaurants (Quick Payment Service Pilot,GPC
Statement 19/07/2016 - 17/08/2016,Corporate Resources,ONE STOP 2699,19/07/2016,6.99,Materials - General,"Grocery Stores, Supermarkets",GPC
Statement 19/07/2016 - 17/08/2016,Corporate Resources,OYSTER RENEW WEB,04/08/2016,50.00,Public Transport -  Staff - General,Passenger Railways,GPC
Statement 19/07/2016 - 17/08/2016,Corporate Resources,P & R BUILDING SUPPLIE,15/08/2016,18.00,Other Services - General,"Building Materials, Lumber Stores",GPC
Statement 19/07/2016 - 17/08/2016,Corporate Resources,PAYPAL  ABCFOODSAFE,25/07/2016,210.00,Publicity/Marketing - Information Provision,Advertising Services,GPC
Statement 19/07/2016 - 17/08/2016,Corporate Resources,PAYPAL  ABCFOODSAFE,01/08/2016,210.00,Training Expenses - General,Advertising Services,GPC
Statement 19/07/2016 - 17/08/2016,Corporate Resources,PAYPAL  ABCFOODSAFE,09/08/2016,-210.00,Training Expenses - General,Advertising Services,GPC
Statement 19/07/2016 - 17/08/2016,Corporate Resources,PAYPAL  MUSEUMSASSC,27/07/2016,370.00,Training Expenses - General,Charitable and Social Service Organizations,GPC
Statement 19/07/2016 - 17/08/2016,Corporate Resources,PAYPAL  SGSA,09/08/2016,33.00,Stationery - General,Government Services-Not Elsewhere Classified,GPC
Statement 19/07/2016 - 17/08/2016,Corporate Resources,PAYPAL  TREECOUNCIL,16/08/2016,15.00,Training Expenses - General,Charitable and Social Service Organizations,GPC
Statement 19/07/2016 - 17/08/2016,Corporate Resources,POST OFFICE COUNTER,22/07/2016,7.25,Public Transport -  Staff - General,Postage Stamps,GPC
Statement 19/07/2016 - 17/08/2016,Corporate Resources,POULTON-LE-FYLDE STN T,11/08/2016,89.00,Public Transport -  Staff - General,Passenger Railways,GPC
Statement 19/07/2016 - 17/08/2016,Corporate Resources,POUNDLAND LTD 1219,21/07/2016,17.84,Training Expenses - General,Discount Stores,GPC
Statement 19/07/2016 - 17/08/2016,Corporate Resources,PREMIER INN44521260,07/08/2016,50.40,Subsistence - General,PREMIER TRAVEL,GPC
Statement 19/07/2016 - 17/08/2016,Corporate Resources,PREMIER INN44521260,07/08/2016,56.40,Subsistence - General,PREMIER TRAVEL,GPC
Statement 19/07/2016 - 17/08/2016,Corporate Resources,PREMIER INN44521260,07/08/2016,56.40,Subsistence - General,PREMIER TRAVEL,GPC
Statement 19/07/2016 - 17/08/2016,Corporate Resources,ROYAL MAIL,02/08/2016,358.00,Postal Services - General,Postage Stamps,GPC
Statement 19/07/2016 - 17/08/2016,Corporate Resources,ROYAL MAIL,02/08/2016,358.00,Postal Services - General,Postage Stamps,GPC
Statement 19/07/2016 - 17/08/2016,Corporate Resources,SAFELINCS,12/08/2016,824.00,R & M of Buildings - General,Durable Goods Not Elsewhere Classified,GPC
Statement 19/07/2016 - 17/08/2016,Corporate Resources,SCREWFIX,20/07/2016,24.15,Operational Equipment - General,"Building Materials, Lumber Stores",GPC
Statement 19/07/2016 - 17/08/2016,Corporate Resources,SCREWFIX,19/07/2016,67.83,Other Services - General,"Building Materials, Lumber Stores",GPC
Statement 19/07/2016 - 17/08/2016,Corporate Resources,SCREWFIX,27/07/2016,20.83,Other Services - General,"Building Materials, Lumber Stores",GPC
Statement 19/07/2016 - 17/08/2016,Corporate Resources,SCREWFIX,03/08/2016,19.98,Other Services - General,"Building Materials, Lumber Stores",GPC
Statement 19/07/2016 - 17/08/2016,Corporate Resources,SCREWFIX,03/08/2016,30.14,Other Services - General,"Building Materials, Lumber Stores",GPC
Statement 19/07/2016 - 17/08/2016,Corporate Resources,SCREWFIX,30/07/2016,18.09,R & M of Buildings - General,"Building Materials, Lumber Stores",GPC
Statement 19/07/2016 - 17/08/2016,Corporate Resources,SELFSERVE TICKET,30/07/2016,50.00,Public Transport -  Staff - General,Passenger Railways,GPC
Statement 19/07/2016 - 17/08/2016,Corporate Resources,SHELL THURCASTON,22/07/2016,89.36,Petrol/Oil/Tyres/Spares - General,Service Stations (with or without Ancillary Servic,GPC
Statement 19/07/2016 - 17/08/2016,Corporate Resources,SHEPSHED AUTO SPARES L,04/08/2016,17.48,R&M of Vehicles-Non Contract - General,Motorcycle Dealers,GPC
Statement 19/07/2016 - 17/08/2016,Corporate Resources,SLB SUPPLIES LTD,05/08/2016,20.00,Materials - General,Pet Shops-Pet Food and Supplies,GPC
Statement 19/07/2016 - 17/08/2016,Corporate Resources,STAPLES UK,08/08/2016,6.48,Other Expenditure - General,"Stationery, Office, and School Supply Stores",GPC
Statement 19/07/2016 - 17/08/2016,Corporate Resources,SUNNYSIDE GARDEN CENTRE,05/08/2016,9.99,Other Services - General,"Florists Supplies, Nursery Stock, and Flowers",GPC
Statement 19/07/2016 - 17/08/2016,Corporate Resources,SurveyMonkey,15/08/2016,26.00,Other Expenditure - General,Computer and Data Processing Services,GPC
Statement 19/07/2016 - 17/08/2016,Corporate Resources,TESCO DIRECT,21/07/2016,23.00,Training Expenses - General,Miscellaneous and Specialty Retail Stores,GPC
Statement 19/07/2016 - 17/08/2016,Corporate Resources,TESCO STORE 2846,21/07/2016,12.50,Training Expenses - General,"Grocery Stores, Supermarkets",GPC
Statement 19/07/2016 - 17/08/2016,Corporate Resources,TESCO STORES 2849,05/08/2016,23.88,Materials - General,"Grocery Stores, Supermarkets",GPC
Statement 19/07/2016 - 17/08/2016,Corporate Resources,THE POST OFFICE,08/08/2016,7.68,Other Expenditure - General,Postage Stamps,GPC
Statement 19/07/2016 - 17/08/2016,Corporate Resources,THURSTON ELECTRICAL SUPP,20/07/2016,10.70,Other Services - General,Electrical Contractors,GPC
Statement 19/07/2016 - 17/08/2016,Corporate Resources,TOWN HALL,27/07/2016,3.00,Public Transport -  Staff - General,"Eating Places, Restaurants",GPC
Statement 19/07/2016 - 17/08/2016,Corporate Resources,TOWN HALL,27/07/2016,2.80,Public Transport -  Staff - General,"Eating Places, Restaurants",GPC
Statement 19/07/2016 - 17/08/2016,Corporate Resources,TP COALVILLE,30/07/2016,14.27,R & M of Buildings - General,"Building Materials, Lumber Stores",GPC
Statement 19/07/2016 - 17/08/2016,Corporate Resources,TP SHEPSHED,27/07/2016,65.79,R & M of Buildings - General,"Building Materials, Lumber Stores",GPC
Statement 19/07/2016 - 17/08/2016,Corporate Resources,TRAINLINE,21/07/2016,416.16,Public Transport -  Staff - General,Passenger Railways,GPC
Statement 19/07/2016 - 17/08/2016,Corporate Resources,TRAINLINE,02/08/2016,88.64,Public Transport -  Staff - General,Passenger Railways,GPC
Statement 19/07/2016 - 17/08/2016,Corporate Resources,TRAINLINE,02/08/2016,122.50,Public Transport -  Staff - General,Passenger Railways,GPC
Statement 19/07/2016 - 17/08/2016,Corporate Resources,TRAINLINE,11/08/2016,20.15,Public Transport -  Staff - General,Passenger Railways,GPC
Statement 19/07/2016 - 17/08/2016,Corporate Resources,TRAINLINE,27/07/2016,95.78,Training Expenses - General,Passenger Railways,GPC
Statement 19/07/2016 - 17/08/2016,Corporate Resources,TRAVELODGE WEBSITE,03/08/2016,83.00,Training Expenses - General,Travelodge,GPC
Statement 19/07/2016 - 17/08/2016,Corporate Resources,TRAVELODGE WEBSITE,12/08/2016,298.96,Training Expenses - General,Travelodge,GPC
Statement 19/07/2016 - 17/08/2016,Corporate Resources,TSGN - ST PANCRAS INTE,04/08/2016,40.50,Public Transport -  Staff - General,Passenger Railways,GPC
Statement 19/07/2016 - 17/08/2016,Corporate Resources,Uber BV,19/07/2016,8.46,Public Transport -  Staff - General,Taxicabs and Limousines,GPC
Statement 19/07/2016 - 17/08/2016,Corporate Resources,UBER GB AUG02 Q42O6 HELP.,02/08/2016,8.70,Public Transport -  Staff - General,Taxicabs and Limousines,GPC
Statement 19/07/2016 - 17/08/2016,Corporate Resources,UBER GB AUG02 Z37Y6 HELP.,02/08/2016,9.41,Public Transport -  Staff - General,Taxicabs and Limousines,GPC
Statement 19/07/2016 - 17/08/2016,Corporate Resources,UPT-EAST MIDLANDS TRN-LB,25/07/2016,11.50,Public Transport -  Staff - General,Professional Services-Not Elsewhere Classified,GPC
Statement 19/07/2016 - 17/08/2016,Corporate Resources,UPT-EAST MIDLANDS TRN-LB,27/07/2016,11.50,Public Transport -  Staff - General,Professional Services-Not Elsewhere Classified,GPC
Statement 19/07/2016 - 17/08/2016,Corporate Resources,UPT-EAST MIDLANDS TRN-LB,04/08/2016,11.50,Public Transport -  Staff - General,Professional Services-Not Elsewhere Classified,GPC
Statement 19/07/2016 - 17/08/2016,Corporate Resources,UPT-EAST MIDLANDS TRN-LB,10/08/2016,11.50,Public Transport -  Staff - General,Professional Services-Not Elsewhere Classified,GPC
Statement 19/07/2016 - 17/08/2016,Corporate Resources,UPT-EAST MIDLANDS TRN-LB,27/07/2016,11.50,Schools Agency staff - Teaching Staff,Professional Services-Not Elsewhere Classified,GPC
Statement 19/07/2016 - 17/08/2016,Corporate Resources,VILLAGE HOTEL HERONS (B),21/07/2016,10.10,Subsistence - General,"Lodging-Hotels, Motels, Resorts",GPC
Statement 19/07/2016 - 17/08/2016,Corporate Resources,WAITROSE 636,26/07/2016,8.34,Subsistence - General,"Grocery Stores, Supermarkets",GPC
Statement 19/07/2016 - 17/08/2016,Corporate Resources,WAITROSE 636,26/07/2016,10.12,Subsistence - General,"Grocery Stores, Supermarkets",GPC
Statement 19/07/2016 - 17/08/2016,Corporate Resources,WAITROSE 636,11/08/2016,7.72,Subsistence - General,"Grocery Stores, Supermarkets",GPC
Statement 19/07/2016 - 17/08/2016,Corporate Resources,WESTHAM B&B,03/08/2016,50.00,Training Expenses - General,"Lodging-Hotels, Motels, Resorts",GPC
Statement 19/07/2016 - 17/08/2016,Corporate Resources,WESTMINSTER FORUM,26/07/2016,210.00,Training Expenses - General,"Management, Consulting and Public Relations Servic",GPC
Statement 19/07/2016 - 17/08/2016,Corporate Resources,WH SMITH,02/08/2016,3.99,Newspapers & Periodicals - General,News Dealers and Newsstands,GPC
Statement 19/07/2016 - 17/08/2016,Corporate Resources,WILKO RETAIL LIMIT,04/08/2016,24.05,Other Services - General,Household Appliance Stores,GPC
Statement 19/07/2016 - 17/08/2016,Corporate Resources,WILKO RETAIL LIMIT,07/08/2016,11.45,Other Services - General,Household Appliance Stores,GPC
Statement 19/07/2016 - 17/08/2016,Corporate Resources,WM MORRISON 054,12/08/2016,33.56,Other Expenditure - General,"Grocery Stores, Supermarkets",GPC
Statement 19/07/2016 - 17/08/2016,Corporate Resources,WM MORRISON 054,13/08/2016,5.00,Other Services - General,"Grocery Stores, Supermarkets",GPC
Statement 19/07/2016 - 17/08/2016,Corporate Resources,WP-ACAS,27/07/2016,195.00,Training Expenses - General,Professional Services-Not Elsewhere Classified,GPC
Statement 19/07/2016 - 17/08/2016,Corporate Resources,WWW OPPASSESSMENT EU COM,09/08/2016,164.00,Training Expenses - General,Business Services-Not Elsewhere Classified,GPC
Statement 19/07/2016 - 17/08/2016,Corporate Resources,WWW.CIPS.ORG,09/08/2016,198.33,Books - General,Membership Organizations-Not Elsewhere Classified,GPC
Statement 19/07/2016 - 17/08/2016,Corporate Resources,WWW.COMMIDEA.COM,27/07/2016,116.36,IT Equipment - Maintenance,Computer and Data Processing Services,GPC
Statement 19/07/2016 - 17/08/2016,Corporate Resources,WWW.DHL INTERNATIONAL,04/08/2016,74.73,IT Equipment - Purchase - Hardware,"Courier Services-Air and Ground, and Freight Forw",GPC
Statement 19/07/2016 - 17/08/2016,Corporate Resources,WWW.ICE.ORG.UK,04/08/2016,64.00,Training Expenses - General,Membership Organizations-Not Elsewhere Classified,GPC
Statement 19/07/2016 - 17/08/2016,Corporate Resources,WWW.LEICESTERSHIRECC.C,03/08/2016,50.00,Subsistence - General,Government Services-Not Elsewhere Classified,GPC
Statement 19/07/2016 - 17/08/2016,Corporate Resources,WWW.OXFORD.AC.UK,27/07/2016,50.00,Training Expenses - General,"Colleges, Universities, Professional Schools, and",GPC
Statement 19/07/2016 - 17/08/2016,Corporate Resources,WWW.PLASTICBUILDINGSUP,02/08/2016,257.97,Materials - General,Plumbing and Heating Equipment,GPC
Statement 19/07/2016 - 17/08/2016,Corporate Resources,WWW.TOOLSTODAY.CO.UK,04/08/2016,29.13,Other Services - General,Hardware Equipment and Supplies,GPC
Statement 19/07/2016 - 17/08/2016,Corporate Resources,YORKSHIRE TRADING - WH,24/07/2016,15.00,Protective Clothing & Uniforms - General,Variety Stores,GPC
Statement 19/07/2016 - 17/08/2016,Corporate Resources,ZEERA,02/08/2016,17.20,Subsistence - General,Fast-Food Restaurants (Quick Payment Service Pilot,GPC
Statement 19/07/2016 - 17/08/2016,E&T,Amazon Svcs Europe SAR,20/07/2016,-12.38,Books - General,Book Stores,GPC
Statement 19/07/2016 - 17/08/2016,E&T,Amazon UK Marketplace,29/07/2016,13.85,Books - General,Book Stores,GPC
Statement 19/07/2016 - 17/08/2016,E&T,Amazon UK Marketplace,29/07/2016,4.99,Materials - General,Miscellaneous and Specialty Retail Stores,GPC
Statement 19/07/2016 - 17/08/2016,E&T,Amazon UK Marketplace,29/07/2016,12.94,Materials - General,Miscellaneous and Specialty Retail Stores,GPC
Statement 19/07/2016 - 17/08/2016,E&T,Amazon UK Marketplace,30/07/2016,39.09,Materials - General,Miscellaneous and Specialty Retail Stores,GPC
Statement 19/07/2016 - 17/08/2016,E&T,Amazon UK Marketplace,13/08/2016,25.75,Materials - General,Miscellaneous and Specialty Retail Stores,GPC
Statement 19/07/2016 - 17/08/2016,E&T,ARCO LTD,01/08/2016,49.20,Other Equipment & Materials - General,Industrial Supplies Not Elsewhere Classified,GPC
Statement 19/07/2016 - 17/08/2016,E&T,ARCO LTD,20/07/2016,45.42,Protective Clothing & Uniforms - General,Industrial Supplies Not Elsewhere Classified,GPC
Statement 19/07/2016 - 17/08/2016,E&T,ARGOS RETAIL GROUP,05/08/2016,13.94,Materials - General,Discount Stores,GPC
Statement 19/07/2016 - 17/08/2016,E&T,EASTMIDLANDSTRAINS,18/07/2016,191.50,Public Transport -  Staff - General,Passenger Railways,GPC
Statement 19/07/2016 - 17/08/2016,E&T,PAYPAL  CRELLINGHAR,12/08/2016,103.80,Other Equipment & Materials - General,Laboratory/Medical/Dental/Ophthalmic Hospital Equi,GPC
Statement 19/07/2016 - 17/08/2016,E&T,RAC,27/07/2016,128.09,R&M of Vehicles-Non Contract - General,Insurance-Sales and Underwriting,GPC
Statement 19/07/2016 - 17/08/2016,E&T,ROYAL MAIL  0845606040,15/08/2016,2.00,Postal Services - General,Postage Stamps,GPC
Statement 19/07/2016 - 17/08/2016,E&T,WWW.MAPLIN.CO.UK,21/07/2016,21.66,Protective Clothing & Uniforms - General,"RADIO, TELEVISION, AND STEREO STORES (ELECTRONIC STORES)",GPC
Statement 19/07/2016 - 17/08/2016,E&T,WWW.NISBETS.COM,15/08/2016,812.38,Other Expenditure - General,Catalog Merchants,GPC
Statement 19/07/2016 - 17/08/2016,E&T,WWW.VIKING-DIRECT.CO.U,25/07/2016,32.39,Other Equipment & Materials - General,"Stationary, Office Supplies, Printing and Writing",GPC
Statement 19/07/2016 - 17/08/2016,Public Health,Amazon UK Marketplace,21/07/2016,8.88,IT Equipment - General,Miscellaneous and Specialty Retail Stores,GPC
Statement 19/07/2016 - 17/08/2016,Public Health,Amazon UK Marketplace,22/07/2016,53.89,IT Equipment - General,Miscellaneous and Specialty Retail Stores,GPC
Statement 19/07/2016 - 17/08/2016,Public Health,Amazon UK Marketplace,02/08/2016,25.50,IT Equipment - General,Book Stores,GPC
Statement 19/07/2016 - 17/08/2016,Public Health,Amazon UK Marketplace,20/07/2016,11.82,Other Equipment & Materials - General,Miscellaneous and Specialty Retail Stores,GPC
Statement 19/07/2016 - 17/08/2016,Public Health,Amazon UK Marketplace,11/08/2016,49.65,Other Equipment & Materials - General,Book Stores,GPC
Statement 19/07/2016 - 17/08/2016,Public Health,Amazon UK Retail,04/08/2016,16.74,IT Equipment - General,Direct Marketers - Other,GPC
Statement 19/07/2016 - 17/08/2016,Public Health,AMAZON UK RETAIL AMAZON.C,04/08/2016,29.57,IT Equipment - General,Miscellaneous and Specialty Retail Stores,GPC
Statement 19/07/2016 - 17/08/2016,Public Health,ASDA HOME SHOPPING,10/08/2016,94.40,Provisions - General,"Grocery Stores, Supermarkets",GPC
Statement 19/07/2016 - 17/08/2016,Public Health,FLAG AND BUNTING LTD,19/07/2016,216.60,Other Equipment & Materials - General,Men's And Women's Clothing Stores,GPC
Statement 19/07/2016 - 17/08/2016,Public Health,NCP LIMITED,21/07/2016,12.00,Subsistence - General,Automobile Parking Lots and Garages,GPC
Statement 19/07/2016 - 17/08/2016,Public Health,TRAVELODGE WEBSITE,28/07/2016,99.95,Subsistence - General,Travelodge,GPC
"**Amounts stated are net of VAT, except where VAT has not been recovered.",,,,,,,
